Workbook

Sheet 1 年次別，性・22週以後－早期新生児別周産期死亡数・率
A1: 第6章 周 産 期 死 亡
A2: 1 年次別にみた性・妊娠満22週以後の死産-早期新生児死亡別周産期死亡数・率及び周産期死 亡中妊娠満22週以後の死産の占める割合
A4: 年次 | B4: 周産期死亡数 | F4: 妊娠満22週以後の死産数 1) | J4: 早期新生児死亡数 | M4: 周 産 期 死 亡 率 (出産千対） 2) | P4: 妊娠満22週以後の死産率 1) (出産千対） 2) | S4: 早期新生児死亡率 (出生千対） | V4: 周産期死亡中 妊娠満22週以 後の死産の占 める割合 1) (％)
B5: 総数 | C5: 男 | D5: 女 | E5: 不詳 | F5: 総数 | G5: 男 | H5: 女 | I5: 不詳 | J5: 総数 | K5: 男 | L5: 女 | M5: 総数 | N5: 男 | O5: 女 | P5: 総数 | Q5: 男 | R5: 女 | S5: 総数 | T5: 男 | U5: 女
A6: 1950 昭和25年 | B6: … | C6: … | D6: … | E6: … | F6: … | G6: … | H6: … | I6: … | J6: … | K6: … | L6: … | M6: ・ | N6: ・ | O6: ・ | P6: ・ | Q6: ・ | R6: ・ | S6: ・ | T6: ・ | U6: ・ | V6: ・ | X6: 8178 | Y6: 4205 | Z6: 3973
A7: 55 30 | B7: … | C7: … | D7: … | E7: … | F7: … | G7: … | H7: … | I7: … | J7: … | K7: … | L7: … | M7: ・ | N7: ・ | O7: ・ | P7: ・ | Q7: ・ | R7: ・ | S7: ・ | T7: ・ | U7: ・ | V7: ・ | X7: 7551 | Y7: 3928 | Z7: 3623
A8: 60 35 | B8: … | C8: … | D8: … | E8: … | F8: … | G8: … | H8: … | I8: … | J8: … | K8: … | L8: … | M8: ・ | N8: ・ | O8: ・ | P8: ・ | Q8: ・ | R8: ・ | S8: ・ | T8: ・ | U8: ・ | V8: ・ | X8: 9392 | Y8: 4911 | Z8: 4481
A9: 65 40 | B9: … | C9: … | D9: … | E9: … | F9: … | G9: … | H9: … | I9: … | J9: 104 | K9: … | L9: … | M9: ・ | N9: ・ | O9: ・ | P9: ・ | Q9: ・ | R9: ・ | S9: 6.353084911 | T9: ・ | U9: ・ | V9: ・ | X9: 16370 | Y9: 8442 | Z9: 7928
A10: 70 45 | B10: … | C10: … | D10: … | E10: … | F10: … | G10: … | H10: … | I10: … | J10: 93 | K10: 58 | L10: 35 | M10: ・ | N10: ・ | O10: ・ | P10: ・ | Q10: ・ | R10: ・ | S10: 4.556366665 | T10: 5.52275757 | U10: 3.532142497 | V10: ・ | X10: 20411 | Y10: 10502 | Z10: 9909
A11: 72 47 | B11: 315 | C11: 206 | D11: 108 | E11: 1 | F11: 202 | G11: 138 | H11: 63 | I11: 1 | J11: 113 | K11: 68 | L11: 45 | M11: 14.30712631 | N11: 18.14019021 | O11: 10.13038177 | P11: 9.174728619 | Q11: 12.15216626 | R11: 5.909389363 | S11: 5.132397693 | T11: 5.988023952 | U11: 4.220992402 | V11: 64.12698413 | X11: 22017 | Y11: 11356 | Z11: 10661
A12: 73 48 | B12: 377 | C12: 217 | D12: 155 | E12: 5 | F12: 271 | G12: 155 | H12: 111 | I12: 5 | J12: 106 | K12: 62 | L12: 44 | M12: 15.8676712 | N12: 17.78834331 | O12: 13.4083045 | P12: 11.40620396 | Q12: 12.7059595 | R12: 9.602076125 | S12: 4.461467233 | T12: 5.082383802 | U12: 3.806228374 | V12: 71.88328912 | X12: 23759 | Y12: 12199 | Z12: 11560
A13: 74 49 | B13: 355 | C13: 201 | D13: 153 | E13: 1 | F13: 237 | G13: 132 | H13: 104 | I13: 1 | J13: 118 | K13: 69 | L13: 49 | M13: 14.47502548 | N13: 15.94099453 | O13: 12.83987915 | P13: 9.663608563 | Q13: 10.46871282 | R13: 8.727760994 | S13: 4.811416922 | T13: 5.472281704 | U13: 4.11211816 | V13: 66.76056338 | X13: 24525 | Y13: 12609 | Z13: 11916
A14: 75 50 | B14: 329 | C14: 172 | D14: 155 | E14: 2 | F14: 204 | G14: 97 | H14: 105 | I14: 2 | J14: 125 | K14: 75 | L14: 50 | M14: 14.05742608 | N14: 14.21370135 | O14: 13.71317349 | P14: 8.716458725 | Q14: 8.015866457 | R14: 9.289569141 | S14: 5.340967356 | T14: 6.19783489 | U14: 4.423604353 | V14: 62.00607903 | X14: 23404 | Y14: 12101 | Z14: 11303
A15: 76 51 | B15: 279 | C15: 143 | D15: 132 | E15: 4 | F15: 187 | G15: 87 | H15: 96 | I15: 4 | J15: 92 | K15: 56 | L15: 36 | M15: 12.17808817 | N15: 12.02590194 | O15: 11.97930847 | P15: 8.162374509 | Q15: 7.316457825 | R15: 8.71222434 | S15: 4.015713662 | T15: 4.709444117 | U15: 3.267084127 | V15: 67.02508961 | X15: 22910 | Y15: 11891 | Z15: 11019
A16: 77 52 | B16: 279 | C16: 143 | D16: 133 | E16: 3 | F16: 189 | G16: 93 | H16: 93 | I16: 3 | J16: 90 | K16: 50 | L16: 40 | M16: 12.51907027 | N16: 12.57474499 | O16: 12.18618288 | P16: 8.480660504 | Q16: 8.177981006 | R16: 8.521165476 | S16: 4.038409764 | T16: 4.396763982 | U16: 3.665017409 | V16: 67.74193548 | X16: 22286 | Y16: 11372 | Z16: 10914
A17: 78 53 | B17: 260 | C17: 137 | D17: 121 | E17: 2 | F17: 170 | G17: 89 | H17: 79 | I17: 2 | J17: 90 | K17: 48 | L17: 42 | M17: 11.6848681 | N17: 11.99334676 | O17: 11.17473218 | P17: 7.640106063 | Q17: 7.791298258 | R17: 7.29589952 | S17: 4.044762033 | T17: 4.202048499 | U17: 3.878832656 | V17: 65.38461538 | X17: 22251 | Y17: 11423 | Z17: 10828
A18: 79 54 | B18: 211 | C18: 128 | D18: 83 | E18: 0 | F18: 147 | G18: 91 | H18: 56 | I18: 0 | J18: 64 | K18: 37 | L18: 27 | M18: 9.778931269 | N18: 11.58371041 | O18: 7.884487508 | P18: 6.812809937 | Q18: 8.235294118 | R18: 5.319654222 | S18: 2.966121333 | T18: 3.34841629 | U18: 2.564833286 | V18: 69.66824645 | X18: 21577 | Y18: 11050 | Z18: 10527
A19: 80 55 | B19: 207 | C19: 112 | D19: 94 | E19: 1 | F19: 132 | G19: 73 | H19: 58 | I19: 1 | J19: 75 | K19: 39 | L19: 36 | M19: 9.88963738 | N19: 10.30358786 | O19: 9.343007653 | P19: 6.306435431 | Q19: 6.715731371 | R19: 5.764834509 | S19: 3.583201949 | T19: 3.587856486 | U19: 3.578173144 | V19: 63.76811594 | X19: 20931 | Y19: 10870 | Z19: 10061
A20: 81 56 | B20: 198 | C20: 106 | D20: 91 | E20: 1 | F20: 133 | G20: 69 | H20: 63 | I20: 1 | J20: 65 | K20: 37 | L20: 28 | M20: 9.927797834 | N20: 10.41155093 | O20: 9.320905459 | P20: 6.668672282 | Q20: 6.777330321 | R20: 6.452934549 | S20: 3.259125552 | T20: 3.634220607 | U20: 2.867970911 | V20: 67.17171717 | X20: 19944 | Y20: 10181 | Z20: 9763
A21: 82 57 | B21: 176 | C21: 85 | D21: 90 | E21: 1 | F21: 118 | G21: 54 | H21: 63 | I21: 1 | J21: 58 | K21: 31 | L21: 27 | M21: 8.491339798 | N21: 8.030990174 | O21: 8.873114463 | P21: 5.693057365 | Q21: 5.102040816 | R21: 6.211180124 | S21: 2.798282434 | T21: 2.928949358 | U21: 2.661934339 | V21: 67.04545455 | X21: 20727 | Y21: 10584 | Z21: 10143
A22: 83 58 | B22: 147 | C22: 76 | D22: 69 | E22: 2 | F22: 95 | G22: 42 | H22: 51 | I22: 2 | J22: 52 | K22: 34 | L22: 18 | M22: 7.133152174 | N22: 7.192882832 | O22: 6.871141207 | P22: 4.609860248 | Q22: 3.975014196 | R22: 5.078669588 | S22: 2.523291925 | T22: 3.217868635 | U22: 1.792471619 | V22: 64.62585034 | X22: 20608 | Y22: 10566 | Z22: 10042
A23: 84 59 | B23: 152 | C23: 90 | D23: 62 | E23: 0 | F23: 94 | G23: 56 | H23: 38 | I23: 0 | J23: 58 | K23: 34 | L23: 24 | M23: 7.497287166 | N23: 8.667180277 | O23: 6.268958544 | P23: 4.636480221 | Q23: 5.392912173 | R23: 3.842264914 | S23: 2.860806945 | T23: 3.274268105 | U23: 2.42669363 | V23: 61.84210526 | X23: 20274 | Y23: 10384 | Z23: 9890
A24: 85 60 | B24: 147 | C24: 79 | D24: 67 | E24: 1 | F24: 101 | G24: 56 | H24: 44 | I24: 1 | J24: 46 | K24: 23 | L24: 23 | M24: 7.611059335 | N24: 8.042349588 | O24: 7.059319355 | P24: 5.229367298 | Q24: 5.700906037 | R24: 4.63597092 | S24: 2.381692037 | T24: 2.341443551 | U24: 2.423348435 | V24: 68.70748299 | X24: 19314 | Y24: 9823 | Z24: 9491
A25: 1986 昭和61年 | B25: 110 | C25: 53 | D25: 56 | E25: 1 | F25: 77 | G25: 33 | H25: 43 | I25: 1 | J25: 33 | K25: 20 | L25: 13 | M25: 5.750130685 | N25: 5.307430403 | O25: 6.124234471 | P25: 4.025091479 | Q25: 3.304626477 | R25: 4.702537183 | S25: 1.725039205 | T25: 2.002803925 | U25: 1.421697288 | V25: 70 | X25: 19130 | Y25: 9986 | Z25: 9144
A26: 87 62 | B26: 116 | C26: 56 | D26: 57 | E26: 3 | F26: 78 | G26: 43 | H26: 32 | I26: 3 | J26: 38 | K26: 13 | L26: 25 | M26: 6.25910538 | N26: 5.800103573 | O26: 6.420364947 | P26: 4.20870879 | Q26: 4.453650958 | R26: 3.604415409 | S26: 2.05039659 | T26: 1.346452615 | U26: 2.815949538 | V26: 67.24137931 | X26: 18533 | Y26: 9655 | Z26: 8878
A27: 88 63 | B27: 99 | C27: 50 | D27: 49 | E27: 0 | F27: 60 | G27: 31 | H27: 29 | I27: 0 | J27: 39 | K27: 19 | L27: 20 | M27: 5.434782609 | N27: 5.35389228 | O27: 5.519882843 | P27: 3.293807642 | Q27: 3.319413213 | R27: 3.266869438 | S27: 2.140974967 | T27: 2.034479066 | U27: 2.253013405 | V27: 60.60606061 | X27: 18216 | Y27: 9339 | Z27: 8877
A28: 89 平成元年 | B28: 107 | C28: 68 | D28: 39 | E28: 0 | F28: 71 | G28: 42 | H28: 29 | I28: 0 | J28: 36 | K28: 26 | L28: 10 | M28: 6.121631672 | N28: 7.522956079 | O28: 4.620853081 | P28: 4.062017278 | Q28: 4.646531696 | R28: 3.436018957 | S28: 2.059614394 | T28: 2.876424383 | U28: 1.184834123 | V28: 66.35514019 | X28: 17479 | Y28: 9039 | Z28: 8440
A29: 90 2 | B29: 100 | C29: 50 | D29: 47 | E29: 3 | F29: 67 | G29: 33 | H29: 31 | I29: 3 | J29: 33 | K29: 17 | L29: 16 | M29: 5.738880918 | N29: 5.541394215 | O29: 5.593906213 | P29: 3.845050215 | Q29: 3.657320182 | R29: 3.689597715 | S29: 1.893830703 | T29: 1.884074033 | U29: 1.904308498 | V29: 67 | X29: 17425 | Y29: 9023 | Z29: 8402
A30: 91 3 | B30: 85 | C30: 46 | D30: 38 | E30: 1 | F30: 54 | G30: 29 | H30: 24 | I30: 1 | J30: 31 | K30: 17 | L30: 14 | M30: 4.868828044 | N30: 5.147717099 | O30: 4.459047172 | P30: 3.093137816 | Q30: 3.24529991 | R30: 2.816240319 | S30: 1.775690228 | T30: 1.902417189 | U30: 1.642806853 | V30: 63.52941176 | X30: 17458 | Y30: 8936 | Z30: 8522
A31: 92 4 | B31: 81 | C31: 48 | D31: 30 | E31: 3 | F31: 58 | G31: 32 | H31: 23 | I31: 3 | J31: 23 | K31: 16 | L31: 7 | M31: 4.675324675 | N31: 5.447735785 | O31: 3.523608175 | P31: 3.347763348 | Q31: 3.631823857 | R31: 2.701432934 | S31: 1.327561328 | T31: 1.815911928 | U31: 0.8221752408 | V31: 71.60493827 | X31: 17325 | Y31: 8811 | Z31: 8514
A32: 93 5 | B32: 62 | C32: 28 | D32: 34 | E32: 0 | F32: 43 | G32: 19 | H32: 24 | I32: 0 | J32: 19 | K32: 9 | L32: 10 | M32: 3.787184656 | N32: 3.325810666 | O32: 4.275653924 | P32: 2.62659581 | Q32: 2.256800095 | R32: 3.018108652 | S32: 1.160588846 | T32: 1.069010571 | U32: 1.257545272 | V32: 69.35483871 | X32: 16371 | Y32: 8419 | Z32: 7952
A33: 94 6 | B33: 74 | C33: 42 | D33: 29 | E33: 3 | F33: 51 | G33: 27 | H33: 21 | I33: 3 | J33: 23 | K33: 15 | L33: 8 | M33: 4.338394794 | N33: 4.810996564 | O33: 3.482646812 | P33: 2.98997479 | Q33: 3.092783505 | R33: 2.521916657 | S33: 1.348420004 | T33: 1.718213058 | U33: 0.9607301549 | V33: 68.91891892 | X33: 17057 | Y33: 8730 | Z33: 8327
A34: 95 7 | B34: 84 | C34: 42 | D34: 40 | E34: 2 | F34: 69 | G34: 34 | H34: 33 | I34: 2 | J34: 15 | K34: 8 | L34: 7 | M34: 5.154639175 | N34: 5.091526246 | O34: 4.972032318 | P34: 4.234167894 | Q34: 4.121711723 | R34: 4.101926663 | S34: 0.9243852838 | T34: 0.9738283628 | U34: 0.8736894658 | V34: 82.14285714 | X34: 16227 | Y34: 8215 | Z34: 8012
A35: 96 8 | B35: 94 | C35: 49 | D35: 41 | E35: 4 | F35: 72 | G35: 35 | H35: 33 | I35: 4 | J35: 22 | K35: 14 | L35: 8 | M35: 5.727865456 | N35: 5.81671415 | O35: 5.135913817 | P35: 4.3873012 | Q35: 4.154795821 | R35: 4.133784292 | S35: 1.346471632 | T35: 1.668852068 | U35: 1.006289308 | V35: 76.59574468 | X35: 16339 | Y35: 8389 | Z35: 7950
A36: 97 9 | B36: 92 | C36: 57 | D36: 35 | E36: 0 | F36: 73 | G36: 46 | H36: 27 | I36: 0 | J36: 19 | K36: 11 | L36: 8 | M36: 5.769471968 | N36: 7.012795276 | O36: 4.476848299 | P36: 4.577950583 | Q36: 5.659448819 | R36: 3.453568688 | S36: 1.197001197 | T36: 1.361049245 | U36: 1.026825825 | V36: 79.34782609 | X36: 15873 | Y36: 8082 | Z36: 7791
A37: 98 10 | B37: 97 | C37: 45 | D37: 51 | E37: 1 | F37: 76 | G37: 34 | H37: 41 | I37: 1 | J37: 21 | K37: 11 | L37: 10 | M37: 5.972538637 | N37: 5.412557133 | O37: 6.434519304 | P37: 4.679514808 | Q37: 4.089487611 | R37: 5.172848852 | S37: 1.299103 | T37: 1.328502415 | U37: 1.268230818 | V37: 78.35051546 | X37: 16165 | Y37: 8280 | Z37: 7885
A38: 99 11 | B38: 67 | C38: 34 | D38: 32 | E38: 1 | F38: 53 | G38: 27 | H38: 25 | I38: 1 | J38: 14 | K38: 7 | L38: 7 | M38: 4.347543962 | N38: 4.336181609 | O38: 4.227771172 | P38: 3.43910194 | Q38: 3.443438337 | R38: 3.302946228 | S38: 0.9115770283 | T38: 0.895828001 | U38: 0.9278897137 | V38: 79.10447761 | X38: 15358 | Y38: 7814 | Z38: 7544
A39: 2000 12 | B39: 65 | C39: 38 | D39: 26 | E39: 1 | F39: 55 | G39: 32 | H39: 22 | I39: 1 | J39: 10 | K39: 6 | L39: 4 | M39: 4.224345226 | N39: 4.827235772 | O39: 3.460207612 | P39: 3.574445961 | Q39: 4.06504065 | R39: 2.92786798 | S39: 0.6522306288 | T39: 0.7653061224 | U39: 0.5339028297 | V39: 84.61538462 | X39: 15332 | Y39: 7840 | Z39: 7492
A40: 01 13 | B40: 87 | C40: 42 | D40: 42 | E40: 3 | F40: 77 | G40: 39 | H40: 35 | I40: 3 | J40: 10 | K40: 3 | L40: 7 | M40: 5.653388784 | N40: 5.386687187 | O40: 5.534325998 | P40: 5.003573981 | Q40: 5.001923817 | R40: 4.611938332 | S40: 0.6530825496 | T40: 0.3866976025 | U40: 0.9266613715 | V40: 88.50574713 | X40: 15312 | Y40: 7758 | Z40: 7554
A41: 02 14 | B41: 54 | C41: 31 | D41: 23 | E41: 0 | F41: 43 | G41: 28 | H41: 15 | I41: 0 | J41: 11 | K41: 3 | L41: 8 | M41: 3.457106274 | N41: 3.839484766 | O41: 3.047972436 | P41: 2.752880922 | Q41: 3.467921724 | R41: 1.98780811 | S41: 0.7061693523 | T41: 0.3728560776 | U41: 1.062275926 | V41: 79.62962963 | X41: 15577 | Y41: 8046 | Z41: 7531
A42: 03 15 | B42: 75 | C42: 39 | D42: 34 | E42: 2 | F42: 60 | G42: 31 | H42: 27 | I42: 2 | J42: 15 | K42: 8 | L42: 7 | M42: 4.980410386 | N42: 5.072181038 | O42: 4.614549403 | P42: 3.984328309 | Q42: 4.031733645 | R42: 3.664495114 | S42: 1.000066671 | T42: 1.04465918 | U42: 0.9535485629 | V42: 80 | X42: 14999 | Y42: 7658 | Z42: 7341
A43: 04 16 | B43: 63 | C43: 38 | D43: 25 | E43: 0 | F43: 47 | G43: 27 | H43: 20 | I43: 0 | J43: 16 | K43: 11 | L43: 5 | M43: 4.257907543 | N43: 5.032446034 | O43: 3.450655625 | P43: 3.176534198 | Q43: 3.57568534 | R43: 2.7605245 | S43: 1.08481931 | T43: 1.461988304 | U43: 0.6920415225 | V43: 74.6031746 | X43: 14749 | Y43: 7524 | Z43: 7225
A44: 05 17 | B44: 63 | C44: 41 | D44: 22 | E44: 0 | F44: 47 | G44: 29 | H44: 18 | I44: 0 | J44: 16 | K44: 12 | L44: 4 | M44: 4.426955239 | N44: 5.665330938 | O44: 3.145553331 | P44: 3.302649146 | Q44: 4.007185298 | R44: 2.573634544 | S44: 1.128031585 | T44: 1.66481687 | U44: 0.5733944954 | V44: 74.6031746 | X44: 14184 | Y44: 7208 | Z44: 6976
A45: 06 18 | B45: 68 | C45: 32 | D45: 33 | E45: 3 | F45: 55 | G45: 24 | H45: 28 | I45: 3 | J45: 13 | K45: 8 | L45: 5 | M45: 4.599256003 | N45: 4.199475066 | O45: 4.607651494 | P45: 3.719986473 | Q45: 3.149606299 | R45: 3.90952248 | S45: 0.8825526137 | T45: 1.053185887 | U45: 0.7008690777 | V45: 80.88235294 | X45: 14730 | Y45: 7596 | Z45: 7134
A46: 07 19 | B46: 53 | C46: 24 | D46: 27 | E46: 2 | F46: 40 | G46: 18 | H46: 20 | I46: 2 | J46: 13 | K46: 6 | L46: 7 | M46: 3.645618379 | N46: 3.259540948 | O46: 3.764115433 | P46: 2.751410098 | Q46: 2.444655711 | R46: 2.788233654 | S46: 0.8966754035 | T46: 0.8168822328 | U46: 0.9786103733 | V46: 75.47169811 | X46: 14498 | Y46: 7345 | Z46: 7153
A47: 08 20 | B47: 70 | C47: 35 | D47: 35 | E47: 0 | F47: 56 | G47: 29 | H47: 27 | I47: 0 | J47: 14 | K47: 6 | L47: 8 | M47: 4.697671297 | N47: 4.624735729 | O47: 4.772944225 | P47: 3.758137038 | Q47: 3.83192389 | R47: 3.681985545 | S47: 0.9430784776 | T47: 0.7958615201 | U47: 1.094990419 | V47: 80 | X47: 14845 | Y47: 7539 | Z47: 7306
A48: 09 21 | B48: 59 | C48: 31 | D48: 26 | E48: 2 | F48: 50 | G48: 26 | H48: 22 | I48: 2 | J48: 9 | K48: 5 | L48: 4 | M48: 4.053311349 | N48: 4.173959876 | O48: 3.648098779 | P48: 3.435009618 | Q48: 3.500740541 | R48: 3.086852813 | S48: 0.6204329243 | T48: 0.6755843805 | U48: 0.5629838142 | V48: 84.74576271 | X48: 14506 | Y48: 7401 | Z48: 7105
A49: 10 22 | B49: 60 | C49: 30 | D49: 30 | E49: 0 | F49: 49 | G49: 22 | H49: 27 | I49: 0 | J49: 11 | K49: 8 | L49: 3 | M49: 4.057343792 | N49: 3.956217856 | O49: 4.163775156 | P49: 3.31349743 | Q49: 2.901226428 | R49: 3.747397641 | S49: 0.746319289 | T49: 1.058061103 | U49: 0.4179437169 | V49: 81.66666667 | X49: 14739 | Y49: 7561 | Z49: 7178
A50: 11 23 | B50: 70 | C50: 43 | D50: 27 | E50: 0 | F50: 56 | G50: 34 | H50: 22 | I50: 0 | J50: 14 | K50: 9 | L50: 5 | M50: 4.811988726 | N50: 5.80140313 | O50: 3.784162579 | P50: 3.849590981 | Q50: 4.587155963 | R50: 3.083391731 | S50: 0.9661169001 | T50: 1.219842776 | U50: 0.702938282 | V50: 80 | X50: 14491 | Y50: 7378 | Z50: 7113
A51: 12 24 | B51: 66 | C51: 30 | D51: 36 | E51: 0 | F51: 55 | G51: 26 | H51: 29 | I51: 0 | J51: 11 | K51: 4 | L51: 7 | M51: 4.538577912 | N51: 4.031716167 | O51: 5.069708492 | P51: 3.78214826 | Q51: 3.494154012 | R51: 4.083931841 | S51: 0.7593014427 | T51: 0.5394470668 | U51: 0.9898190045 | V51: 83.33333333 | X51: 14487 | Y51: 7415 | Z51: 7072
A52: 13 25 | B52: 47 | C52: 24 | D52: 23 | E52: 0 | F52: 34 | G52: 17 | H52: 17 | I52: 0 | J52: 13 | K52: 7 | L52: 6 | M52: 3.213675214 | N52: 3.190640787 | O52: 3.238068422 | P52: 2.324786325 | Q52: 2.260037224 | R52: 2.39335492 | S52: 0.8909601809 | T52: 0.9327115256 | U52: 0.8467400508 | V52: 72.34042553 | X52: 14591 | Y52: 7505 | Z52: 7086
A53: 14 26 | B53: 74 | C53: 32 | D53: 42 | E53: 0 | F53: 61 | G53: 25 | H53: 36 | I53: 0 | J53: 13 | K53: 7 | L53: 6 | M53: 5.058445553 | N53: 4.257017427 | O53: 5.905511811 | P53: 4.169799713 | Q53: 3.325794865 | R53: 5.061867267 | S53: 0.8923668314 | T53: 0.9343299519 | U53: 0.8479366874 | V53: 82.43243243 | X53: 14568 | Y53: 7492 | Z53: 7076
A54: 15 27 | B54: 63 | C54: 35 | D54: 27 | E54: 1 | F54: 54 | G54: 27 | H54: 26 | I54: 1 | J54: 9 | K54: 8 | L54: 1 | M54: 4.30239705 | N54: 4.623513871 | O54: 3.817873303 | P54: 3.6877689 | Q54: 3.5667107 | R54: 3.676470588 | S54: 0.6169031462 | T54: 1.060585974 | U54: 0.1419244962 | V54: 85.71428571 | X54: 14589 | Y54: 7543 | Z54: 7046
A55: 16 28 | B55: 47 | C55: 26 | D55: 21 | E55: 0 | F55: 38 | G55: 21 | H55: 17 | I55: 0 | J55: 9 | K55: 5 | L55: 4 | M55: 3.3 | N55: 3.6 | O55: 3 | P55: 2.7 | Q55: 2.9 | R55: 2.5 | S55: 2.6 | T55: 0.7 | U55: 0.6 | V55: 80.9 | X55: 14021 | Y55: 7144 | Z55: 6877
A56: 17 29 | B56: 58 | C56: 35 | D56: 23 | E56: 0 | F56: 45 | G56: 28 | H56: 17 | I56: 0 | J56: 13 | K56: 7 | L56: 6 | M56: 4.182893408 | N56: 4.83960177 | O56: 3.466988242 | P56: 3.245348334 | Q56: 3.871681416 | R56: 2.562556527 | S56: 0.9405976413 | T56: 0.9716823987 | U56: 0.9067553272 | V56: 77.5862069 | X56: 13821 | Y56: 7204 | Z56: 6617
A57: 18 30 | B57: =SUM(F57,J57) -> 47 | C57: =SUM(G57,K57) -> 22 | D57: =SUM(H57,L57) -> 25 | E57: =I57 -> 0 | F57: =SUM(G57:I57) -> 32 | G57: ='2 区・性別，22週以後－早期新生児別周産期死亡数・率'!$G$5 -> 14 | H57: ='2 区・性別，22週以後－早期新生児別周産期死亡数・率'!$H$5 -> 18 | I57: ='2 区・性別，22週以後－早期新生児別周産期死亡数・率'!$I$5 -> 0 | J57: =SUM(K57:L57) -> 15 | K57: ='2 区・性別，22週以後－早期新生児別周産期死亡数・率'!$K$5 -> 8 | L57: ='2 区・性別，22週以後－早期新生児別周産期死亡数・率'!$L$5 -> 7 | M57: =B57/(F57+X57)*1000 -> 3.539156627 | N57: =C57/(G57+Y57)*1000 -> 3.255401006 | O57: =D57/(H57+Z57)*1000 -> 3.833180006 | P57: =F57/(F57+X57)*1000 -> 2.409638554 | Q57: =G57/(G57+Y57)*1000 -> 2.071618822 | R57: =H57/(H57+Z57)*1000 -> 2.759889604 | S57: =J57/X57*1000 -> 1.132246377 | T57: =K57/Y57*1000 -> 1.18623962 | U57: =L57/Z57*1000 -> 1.076260763 | V57: =F57/B57*100 -> 68.08510638 | X57: =[1]出生数!B55 -> 13248 | Y57: =[1]出生数!C55 -> 6744 | Z57: =[1]出生数!D55 -> 6504
A58: 1) 平成6年までは、「妊娠満28週以後の死産」である。 | H58: 2) 平成6年までは、出生千対である。 | M58: 3) 本市の集計による。

Sheet 2 区・性別，22週以後－早期新生児別周産期死亡数・率
A1: 2 区・性別にみた妊娠満22週以後の死産-早期新生児死亡別周産期死亡数及び率
L2: 平成30年
A3: 区 | B3: 周 産 期 死 亡 数 | F3: 妊娠満22週以後の死産数 | J3: 早期新生児死亡数
B4: 総数 | C4: 男 | D4: 女 | E4: 不詳 | F4: 総数 | G4: 男 | H4: 女 | I4: 不詳 | J4: 総数 | K4: 男 | L4: 女
A5: 総数 | B5: =SUM(F5,J5) -> 47 | C5: =SUM(G5,K5) -> 22 | D5: =SUM(H5,L5) -> 25 | E5: =I5 -> 0 | F5: =SUM(F6:F15) -> 32 | G5: 14 | H5: 18 | I5: 0 | J5: 15 | K5: 8 | L5: 7
A6: 中央 | B6: 6 | C6: 2 | D6: 4 | E6: 0 | F6: =SUM(G6:I6) -> 4 | G6: 1 | H6: 3 | I6: 0 | J6: =SUM(K6:L6) -> 2 | K6: 1 | L6: 1
A7: 北 | B7: 8 | C7: 4 | D7: 4 | E7: 0 | F7: 7 | G7: 3 | H7: 4 | I7: 0 | J7: 1 | K7: 1 | L7: 0
A8: 東 | B8: 5 | C8: 3 | D8: 2 | E8: 0 | F8: 2 | G8: 1 | H8: 1 | I8: 0 | J8: 3 | K8: 2 | L8: 1
A9: 白石 | B9: 4 | C9: 1 | D9: 3 | E9: 0 | F9: 3 | G9: 1 | H9: 2 | I9: 0 | J9: 1 | K9: 0 | L9: 1
A10: 厚別 | B10: 4 | C10: 4 | D10: 0 | E10: 0 | F10: 2 | G10: 2 | H10: 0 | I10: 0 | J10: =SUM(K10:L10) -> 2 | K10: 2 | L10: 0
A11: 豊平 | B11: 7 | C11: 4 | D11: 3 | E11: 0 | F11: 5 | G11: 3 | H11: 2 | I11: 0 | J11: 2 | K11: 1 | L11: 1
A12: 清田 | B12: 1 | C12: 0 | D12: 1 | E12: 0 | F12: 0 | G12: 0 | H12: 0 | I12: 0 | J12: 1 | K12: 0 | L12: 1
A13: 南 | B13: 3 | C13: 1 | D13: 2 | E13: 0 | F13: 3 | G13: 1 | H13: 2 | I13: 0 | J13: 0 | K13: 0 | L13: 0
A14: 西 | B14: 7 | C14: 2 | D14: 5 | E14: 0 | F14: 5 | G14: 1 | H14: 4 | I14: 0 | J14: 2 | K14: 1 | L14: 1
A15: 手稲 | B15: 2 | C15: 1 | D15: 1 | E15: 0 | F15: 1 | G15: 1 | H15: 0 | I15: 0 | J15: 1 | K15: 0 | L15: 1
A16: 区 | B16: 周 産 期 死 亡 率 (出産千対) | F16: 妊娠満22週以後の死産率 (出産千対) | J16: 早期新生児死亡率 (出生千対)
B17: 総数 | C17: 男 | D17: 女 | E17: 不詳 | F17: 総数 | G17: 男 | H17: 女 | I17: 不詳 | J17: 総数 | K17: 男 | L17: 女
A18: 総数 | B18: =B5/(F5+O18)*1000 -> 3.539156627 | C18: =C5/(G5+P18)*1000 -> 3.255401006 | D18: =D5/(H5+Q18)*1000 -> 3.833180006 | E18: ・ | F18: =F5/(F5+O18)*1000 -> 2.409638554 | G18: =G5/(G5+P18)*1000 -> 2.071618822 | H18: =H5/(H5+Q18)*1000 -> 2.759889604 | I18: ・ | J18: =J5/O18*1000 -> 1.132246377 | K18: =K5/P18*1000 -> 1.18623962 | L18: =L5/Q18*1000 -> 1.076260763 | O18: =[1]出生数!G4 -> 13248 | P18: =[1]出生数!H4 -> 6744 | Q18: =[1]出生数!I4 -> 6504
A19: 中央 | B19: =B6/(F6+O19)*1000 -> 3.432494279 | C19: =C6/(G6+P19)*1000 -> 2.176278564 | D19: =D6/(H6+Q19)*1000 -> 4.82509047 | E19: ・ | F19: 2.288329519 | G19: 1.088139282 | H19: 3.618817853 | I19: ・ | J19: 1.146788991 | K19: 1.089324619 | L19: 1.210653753 | O19: =[1]出生数!G5 -> 1744 | P19: =[1]出生数!H5 -> 918 | Q19: =[1]出生数!I5 -> 826
A20: 北 | B20: 4.314994606 | C20: 4.324324324 | D20: 4.305705059 | E20: ・ | F20: 3.77562028 | G20: 3.243243243 | H20: 4.305705059 | I20: ・ | J20: 0.5414185165 | K20: 1.084598698 | L20: 0 | O20: =[1]出生数!G6 -> 1847 | P20: =[1]出生数!H6 -> 922 | Q20: =[1]出生数!I6 -> 925
A21: 東 | B21: 2.525252525 | C21: 3.012048193 | D21: 2.032520325 | E21: ・ | F21: 1.01010101 | G21: 1.004016064 | H21: 1.016260163 | I21: ・ | J21: 1.516683519 | K21: 2.010050251 | L21: 1.017293998 | O21: =[1]出生数!G7 -> 1978 | P21: =[1]出生数!H7 -> 995 | Q21: =[1]出生数!I7 -> 983
A22: 白石 | B22: 2.333722287 | C22: 1.132502831 | D22: 3.610108303 | E22: ・ | F22: 1.750291715 | G22: 1.132502831 | H22: 2.406738869 | I22: ・ | J22: 0.5844535359 | K22: 0 | L22: 1.206272618 | O22: =[1]出生数!G8 -> 1711 | P22: =[1]出生数!H8 -> 882 | Q22: =[1]出生数!I8 -> 829
A23: 厚別 | B23: 6.033182504 | C23: 11.04972376 | D23: 0 | E23: ・ | F23: 3.016591252 | G23: 5.524861878 | H23: 0 | I23: ・ | J23: 3.025718608 | K23: 5.555555556 | L23: 0 | O23: =[1]出生数!G9 -> 661 | P23: =[1]出生数!H9 -> 360 | Q23: =[1]出生数!I9 -> 301
A24: 豊平 | B24: 4.149377593 | C24: 4.662004662 | D24: 3.618817853 | E24: ・ | F24: 2.963841138 | G24: 3.496503497 | H24: 2.412545235 | I24: ・ | J24: 1.189060642 | K24: 1.169590643 | L24: 1.209189843 | O24: =[1]出生数!G10 -> 1682 | P24: =[1]出生数!H10 -> 855 | Q24: =[1]出生数!I10 -> 827
A25: 清田 | B25: 1.552795031 | C25: 0 | D25: 3.076923077 | E25: ・ | F25: 0 | G25: 0 | H25: 0 | I25: ・ | J25: 1.552795031 | K25: 0 | L25: 3.076923077 | O25: =[1]出生数!G11 -> 644 | P25: =[1]出生数!H11 -> 319 | Q25: =[1]出生数!I11 -> 325
A26: 南 | B26: 4.651162791 | C26: 3.058103976 | D26: 6.289308176 | E26: ・ | F26: 4.651162791 | G26: 3.058103976 | H26: 6.289308176 | I26: ・ | J26: 0 | K26: 0 | L26: 0 | O26: =[1]出生数!G12 -> 642 | P26: =[1]出生数!H12 -> 326 | Q26: =[1]出生数!I12 -> 316
A27: 西 | B27: 4.560260586 | C27: 2.587322122 | D27: 6.56167979 | E27: ・ | F27: 3.25732899 | G27: 1.293661061 | H27: 5.249343832 | I27: ・ | J27: 1.307189542 | K27: 1.295336788 | L27: 1.319261214 | O27: =[1]出生数!G13 -> 1530 | P27: =[1]出生数!H13 -> 772 | Q27: =[1]出生数!I13 -> 758
A28: 手稲 | B28: 2.469135802 | C28: 2.525252525 | D28: 2.415458937 | E28: ・ | F28: 1.234567901 | G28: 2.525252525 | H28: 0 | I28: ・ | J28: 1.236093943 | K28: 0 | L28: 2.415458937 | O28: =[1]出生数!G14 -> 809 | P28: =[1]出生数!H14 -> 395 | Q28: =[1]出生数!I14 -> 414

Sheet 3 母の年齢階級別，22週以後－早期新生児別周産期死亡数・率
A1: 3 母の年齢（5歳階級）・性別にみた妊娠満22週以後の死産-早期新生児死亡別周産期死亡数 及び率
L2: ='2 区・性別，22週以後－早期新生児別周産期死亡数・率'!$L$2 -> 平成30年
A3: 母の年齢 | B3: 周 産 期 死 亡 数 | F3: 妊娠満22週以後の死産数 | J3: 早期新生児死亡数
B4: 総数 | C4: 男 | D4: 女 | E4: 不詳 | F4: 総数 | G4: 男 | H4: 女 | I4: 不詳 | J4: 総数 | K4: 男 | L4: 女
A5: 総数 | B5: =SUM(F5,J5) -> 47 | C5: =SUM(G5,K5) -> 22 | D5: 25 | E5: =I5 -> 0 | F5: =SUM(F7:F15) -> 32 | G5: 14 | H5: 18 | I5: 0 | J5: 15 | K5: 8 | L5: 7
A6: 14歳以下 | B6: =SUM(F6,J6) -> 0 | C6: =SUM(G6,K6) -> 0 | D6: =SUM(H6,L6) -> 0 | E6: =I6 -> 0 | F6: =SUM(G6:I6) -> 0 | G6: 0 | H6: 0 | I6: 0 | J6: =SUM(K6:L6) -> 0 | K6: 0 | L6: 0
A7: 15～19 | B7: =SUM(F7,J7) -> 1 | C7: 1 | D7: 0 | E7: =I7 -> 0 | F7: =SUM(G7:I7) -> 1 | G7: 1 | H7: 0 | I7: 0 | J7: =SUM(K7:L7) -> 0 | K7: 0 | L7: 0
A8: 20～24 | B8: 5 | C8: 4 | D8: 1 | E8: 0 | F8: =SUM(G8:I8) -> 4 | G8: 3 | H8: 1 | I8: 0 | J8: =SUM(K8:L8) -> 1 | K8: 1 | L8: 0
A9: 25～29 | B9: 15 | C9: 4 | D9: 11 | E9: 0 | F9: 12 | G9: 3 | H9: 9 | I9: 0 | J9: 3 | K9: 1 | L9: 2
A10: 30～34 | B10: 10 | C10: 4 | D10: 6 | E10: 0 | F10: 8 | G10: 2 | H10: 6 | I10: 0 | J10: 2 | K10: 2 | L10: 0
A11: 35～39 | B11: 13 | C11: 7 | D11: 6 | E11: 0 | F11: 5 | G11: 3 | H11: 2 | I11: 0 | J11: 8 | K11: 4 | L11: 4
A12: 40～44 | B12: 3 | C12: 2 | D12: 1 | E12: 0 | F12: 2 | G12: 2 | H12: 0 | I12: 0 | J12: 1 | K12: 0 | L12: 1
A13: 45～49 | B13: =SUM(F13,J13) -> 0 | C13: 0 | D13: 0 | E13: =I13 -> 0 | F13: =SUM(G13:I13) -> 0 | G13: 0 | H13: 0 | I13: 0 | J13: =SUM(K13:L13) -> 0 | K13: 0 | L13: 0
A14: 50歳～ | B14: 0 | C14: 0 | D14: 0 | E14: 0 | F14: 0 | G14: 0 | H14: 0 | I14: 0 | J14: =SUM(K14:L14) -> 0 | K14: 0 | L14: 0
A15: 不詳 | B15: 0 | C15: 0 | D15: 0 | E15: 0 | F15: 0 | G15: 0 | H15: 0 | I15: 0 | J15: 0 | K15: 0 | L15: 0
A16: 母の年齢 | B16: 周 産 期 死 亡 率 (出産千対) | F16: 妊娠満22週以後の死産率 (出産千対) | J16: 早期新生児死亡率 (出生千対)
B17: 総数 | C17: 男 | D17: 女 | E17: 不詳 | F17: 総数 | G17: 男 | H17: 女 | I17: 不詳 | J17: 総数 | K17: 男 | L17: 女
A18: 総数 | B18: =IF(B5=0,0,B5/(F5+N18)*1000) -> 3.539156627 | C18: =IF(C5=0,0,C5/(G5+O18)*1000) -> 3.255401006 | D18: =IF(D5=0,0,D5/(H5+P18)*1000) -> 3.833180006 | E18: ・ | F18: =IF(F5=0,0,F5/(F5+N18)*1000) -> 2.409638554 | G18: =IF(G5=0,0,G5/(G5+O18)*1000) -> 2.071618822 | H18: =IF(H5=0,0,H5/(H5+P18)*1000) -> 2.759889604 | I18: ・ | J18: =IF(J5=0,0,J5/N18*1000) -> 1.132246377 | K18: =IF(K5=0,0,K5/O18*1000) -> 1.18623962 | L18: =IF(L5=0,0,L5/P18*1000) -> 1.076260763 | N18: =[1]出生数!G22 -> 13248 | O18: =[1]出生数!H22 -> 6744 | P18: =[1]出生数!I22 -> 6504
A19: 14歳以下 | B19: =IF(B6=0,0,B6/(F6+N19)*1000) -> 0 | C19: 0 | D19: =IF(D6=0,0,D6/(H6+P19)*1000) -> 0 | E19: ・ | F19: 0 | G19: 0 | H19: 0 | I19: ・ | J19: 0 | K19: 0 | L19: 0 | N19: =[1]出生数!G23 -> 3 | O19: =[1]出生数!H23 -> 0 | P19: =[1]出生数!I23 -> 3
A20: 15～19 | B20: 9.708737864 | C20: 16.39344262 | D20: 0 | E20: ・ | F20: 9.708737864 | G20: 16.39344262 | H20: 0 | I20: ・ | J20: 0 | K20: 0 | L20: 0 | N20: =[1]出生数!G24 -> 102 | O20: =[1]出生数!H24 -> 60 | P20: =[1]出生数!I24 -> 42
A21: 20～24 | B21: 4.428697963 | C21: 7.079646018 | D21: =IF(D8=0,0,D8/(H8+P21)*1000) -> 1.773049645 | E21: ・ | F21: 3.54295837 | G21: 5.309734513 | H21: 1.773049645 | I21: ・ | J21: 0.8888888889 | K21: 1.779359431 | L21: 0 | N21: =[1]出生数!G25 -> 1125 | O21: =[1]出生数!H25 -> 562 | P21: =[1]出生数!I25 -> 563
A22: 25～29 | B22: 4.604051565 | C22: 2.466091245 | D22: 6.723716381 | E22: ・ | F22: 3.683241252 | G22: 1.849568434 | H22: 5.501222494 | I22: ・ | J22: 0.9242144177 | K22: 0.6176652254 | L22: 1.2292563 | N22: =[1]出生数!G26 -> 3246 | O22: =[1]出生数!H26 -> 1619 | P22: =[1]出生数!I26 -> 1627
A23: 30～34 | B23: 2.087246921 | C23: 1.633319722 | D23: 2.561912895 | E23: ・ | F23: 1.669797537 | G23: 0.8166598612 | H23: 2.561912895 | I23: ・ | J23: 0.4181476061 | K23: 0.8173273396 | L23: 0 | N23: =[1]出生数!G27 -> 4783 | O23: =[1]出生数!H27 -> 2447 | P23: =[1]出生数!I27 -> 2336
A24: 35～39 | B24: 4.018547141 | C24: 4.19412822 | D24: 3.831417625 | E24: ・ | F24: 1.545595054 | G24: 1.797483523 | H24: 1.277139208 | I24: ・ | J24: 2.476780186 | K24: 2.400960384 | L24: 2.557544757 | N24: =[1]出生数!G28 -> 3230 | O24: =[1]出生数!H28 -> 1666 | P24: =[1]出生数!I28 -> 1564
A25: 40～44 | B25: 4.048582996 | C25: 5.263157895 | D25: 2.770083102 | E25: ・ | F25: 2.699055331 | G25: 5.263157895 | H25: 0 | I25: ・ | J25: 1.353179973 | K25: 0 | L25: 2.770083102 | N25: =[1]出生数!G29 -> 739 | O25: =[1]出生数!H29 -> 378 | P25: =[1]出生数!I29 -> 361
A26: 45～49 | B26: 0 | C26: 0 | D26: 0 | E26: ・ | F26: 0 | G26: 0 | H26: 0 | I26: ・ | J26: 0 | K26: 0 | L26: 0 | N26: =[1]出生数!G30 -> 20 | O26: =[1]出生数!H30 -> 12 | P26: =[1]出生数!I30 -> 8
A27: 50歳～ | B27: 0 | C27: 0 | D27: 0 | E27: ・ | F27: 0 | G27: 0 | H27: 0 | I27: ・ | J27: 0 | K27: 0 | L27: 0 | N27: =[1]出生数!G31 -> 0 | O27: =[1]出生数!H31 -> 0 | P27: =[1]出生数!I31 -> 0

Sheet 4 性・出産時の体重別，22週以後－早期新生児別周産期死亡数
A1: 4 出産時の体重・性別にみた妊娠満22週以後の死産-早期新生児死亡別周産期死亡数及び率
L2: ='2 区・性別，22週以後－早期新生児別周産期死亡数・率'!$L$2 -> 平成30年
A3: 出産時の体重 | B3: 周 産 期 死 亡 数 | F3: 妊娠満22週以後の死産数 | J3: 早期新生児死亡数
B4: 総数 | C4: 男 | D4: 女 | E4: 不詳 | F4: 総数 | G4: 男 | H4: 女 | I4: 不詳 | J4: 総数 | K4: 男 | L4: 女
A5: 総数 | B5: =SUM(F5,J5) -> 47 | C5: =SUM(G5,K5) -> 22 | D5: =SUM(H5,L5) -> 25 | E5: =I5 -> 0 | F5: =SUM(F6:F17) -> 32 | G5: 14 | H5: 18 | I5: 0 | J5: 15 | K5: 8 | L5: 7
A6: 0.5㎏未満 | B6: =SUM(F6,J6) -> 11 | C6: =SUM(G6,K6) -> 5 | D6: =SUM(H6,L6) -> 6 | E6: =I6 -> 0 | F6: =SUM(G6:I6) -> 9 | G6: 4 | H6: 5 | I6: 0 | J6: =SUM(K6:L6) -> 2 | K6: 1 | L6: 1
A7: 0.5㎏以上 1.0㎏未満 | B7: 10 | C7: 5 | D7: 5 | E7: 0 | F7: =SUM(G7:I7) -> 6 | G7: 2 | H7: 4 | I7: 0 | J7: =SUM(K7:L7) -> 4 | K7: 3 | L7: 1
A8: 1.0～1.5㎏ | B8: 6 | C8: 3 | D8: 3 | E8: 0 | F8: 3 | G8: 2 | H8: 1 | I8: 0 | J8: 3 | K8: 1 | L8: 2
A9: 1.5～2.0㎏ | B9: 3 | C9: 1 | D9: 2 | E9: 0 | F9: 3 | G9: 1 | H9: 2 | I9: 0 | J9: 0 | K9: 0 | L9: 0
A10: 2.0～2.5㎏ | B10: 8 | C10: 5 | D10: 3 | E10: 0 | F10: 6 | G10: 3 | H10: 3 | I10: 0 | J10: 2 | K10: 2 | L10: 0
A11: 2.5～3.0㎏ | B11: 4 | C11: 2 | D11: 2 | E11: 0 | F11: 3 | G11: 1 | H11: 2 | I11: 0 | J11: 1 | K11: 1 | L11: 0
A12: 3.0～3.5㎏ | B12: 4 | C12: 0 | D12: 4 | E12: 0 | F12: 1 | G12: 0 | H12: 1 | I12: 0 | J12: 3 | K12: 0 | L12: 3
A13: 3.5～4.0㎏ | B13: 1 | C13: 1 | D13: 0 | E13: 0 | F13: 1 | G13: 1 | H13: 0 | I13: 0 | J13: 0 | K13: 0 | L13: 0
A14: 4.0～4.5㎏ | B14: 0 | C14: 0 | D14: 0 | E14: 0 | F14: 0 | G14: 0 | H14: 0 | I14: 0 | J14: 0 | K14: 0 | L14: 0
A15: 4.5～5.0㎏ | B15: 0 | C15: 0 | D15: 0 | E15: 0 | F15: 0 | G15: 0 | H15: 0 | I15: 0 | J15: 0 | K15: 0 | L15: 0
A16: 5.0㎏以上 | B16: =SUM(F16,J16) -> 0 | C16: =SUM(G16,K16) -> 0 | D16: =SUM(H16,L16) -> 0 | E16: =I16 -> 0 | F16: =SUM(G16:I16) -> 0 | G16: 0 | H16: 0 | I16: 0 | J16: =SUM(K16:L16) -> 0 | K16: 0 | L16: 0
A17: 不詳 | B17: 0 | C17: 0 | D17: 0 | E17: 0 | F17: 0 | G17: 0 | H17: 0 | I17: 0 | J17: 0 | K17: 0 | L17: 0
A18: 出産時の 平均体重(㎏) | B18: 1.475702128 | C18: 1.430818182 | D18: 1.5152 | E18: 0 | F18: 1.3976875 | G18: 1.453928571 | H18: 1.353944444 | I18: 0 | J18: 1.642133333 | K18: 1.390375 | L18: 1.929857143
A19: 出産時の体重 | B19: 周 産 期 死 亡 率 (出産千対) | F19: 妊娠満22週以後の死産率 (出産千対) | J19: 早期新生児死亡率 (出生千対)
B20: 総数 | C20: 男 | D20: 女 | E20: 不詳 | F20: 総数 | G20: 男 | H20: 女 | I20: 不詳 | J20: 総数 | K20: 男 | L20: 女
A21: 総数 | B21: =IF(B5=0,0,B5/(F5+N21)*1000) -> 3.539156627 | C21: =IF(C5=0,0,C5/(G5+O21)*1000) -> 3.255401006 | D21: =IF(D5=0,0,D5/(H5+P21)*1000) -> 3.833180006 | E21: ・ | F21: =IF(F5=0,0,F5/(F5+N21)*1000) -> 2.409638554 | G21: =IF(G5=0,0,G5/(G5+O21)*1000) -> 2.071618822 | H21: =IF(H5=0,0,H5/(H5+P21)*1000) -> 2.759889604 | I21: ・ | J21: =IF(J5=0,0,J5/N21*1000) -> 1.132246377 | K21: =IF(K5=0,0,K5/O21*1000) -> 1.18623962 | L21: =IF(L5=0,0,L5/P21*1000) -> 1.076260763 | N21: =[1]出生数!G35 -> 13248 | O21: =[1]出生数!H35 -> 6744 | P21: =[1]出生数!I35 -> 6504
A22: 0.5㎏未満 | B22: =IF(B6=0,0,B6/(F6+N22)*1000) -> 687.5 | C22: =IF(C6=0,0,C6/(G6+O22)*1000) -> 714.2857143 | D22: =IF(D6=0,0,D6/(H6+P22)*1000) -> 666.6666667 | E22: ・ | F22: =IF(F6=0,0,F6/(F6+N22)*1000) -> 562.5 | G22: 571.4285714 | H22: 555.5555556 | I22: ・ | J22: =IF(J6=0,0,J6/N22*1000) -> 285.7142857 | K22: 333.3333333 | L22: 250 | N22: =[1]出生数!G36 -> 7 | O22: =[1]出生数!H36 -> 3 | P22: =[1]出生数!I36 -> 4
A23: 0.5㎏以上 1.0㎏未満 | B23: 303.030303 | C23: =IF(C7=0,0,C7/(G7+O23)*1000) -> 294.1176471 | D23: 312.5 | E23: ・ | F23: 181.8181818 | G23: 117.6470588 | H23: 250 | I23: ・ | J23: 148.1481481 | K23: 200 | L23: 83.33333333 | N23: =[1]出生数!G37 -> 27 | O23: =[1]出生数!H37 -> 15 | P23: =[1]出生数!I37 -> 12
A24: 1.0～1.5㎏ | B24: 109.0909091 | C24: =IF(C8=0,0,C8/(G8+O24)*1000) -> 120 | D24: 100 | E24: ・ | F24: 54.54545455 | G24: 80 | H24: 33.33333333 | I24: ・ | J24: 57.69230769 | K24: 43.47826087 | L24: 68.96551724 | N24: =[1]出生数!G38 -> 52 | O24: =[1]出生数!H38 -> 23 | P24: =[1]出生数!I38 -> 29
A25: 1.5～2.0㎏ | B25: 19.35483871 | C25: =IF(C9=0,0,C9/(G9+O25)*1000) -> 11.76470588 | D25: 28.57142857 | E25: ・ | F25: 19.35483871 | G25: 11.76470588 | H25: 28.57142857 | I25: ・ | J25: 0 | K25: 0 | L25: 0 | N25: =[1]出生数!G39 -> 152 | O25: =[1]出生数!H39 -> 84 | P25: =[1]出生数!I39 -> 68
A26: 2.0～2.5㎏ | B26: 8.421052632 | C26: 12.25490196 | D26: 5.535055351 | E26: ・ | F26: 6.315789474 | G26: 7.352941176 | H26: 5.535055351 | I26: ・ | J26: 2.118644068 | K26: 4.938271605 | L26: 0 | N26: =[1]出生数!G40 -> 944 | O26: =[1]出生数!H40 -> 405 | P26: =[1]出生数!I40 -> 539
A27: 2.5～3.0㎏ | B27: 0.799840032 | C27: 0.8624407072 | D27: 0.7457121551 | E27: ・ | F27: 0.599880024 | G27: 0.4312203536 | H27: 0.7457121551 | I27: ・ | J27: 0.200080032 | K27: 0.4314063848 | L27: 0 | N27: =[1]出生数!G41 -> 4998 | O27: =[1]出生数!H41 -> 2318 | P27: =[1]出生数!I41 -> 2680
A28: 3.0～3.5㎏ | B28: 0.7174887892 | C28: 0 | D28: 1.548586914 | E28: ・ | F28: 0.1793721973 | G28: 0 | H28: 0.3871467286 | I28: ・ | J28: 0.5382131324 | K28: 0 | L28: 1.161890008 | N28: =[1]出生数!G42 -> 5574 | O28: =[1]出生数!H42 -> 2992 | P28: =[1]出生数!I42 -> 2582
A29: 3.5～4.0㎏ | B29: 0.723065799 | C29: 1.199040767 | D29: 0 | E29: ・ | F29: 0.723065799 | G29: 1.199040767 | H29: 0 | I29: ・ | J29: 0 | K29: 0 | L29: 0 | N29: =[1]出生数!G43 -> 1382 | O29: =[1]出生数!H43 -> 833 | P29: =[1]出生数!I43 -> 549
A30: 4.0～4.5㎏ | B30: 0 | C30: 0 | D30: 0 | E30: ・ | F30: 0 | G30: 0 | H30: 0 | I30: ・ | J30: 0 | K30: 0 | L30: 0 | N30: =[1]出生数!G44 -> 106 | O30: =[1]出生数!H44 -> 67 | P30: =[1]出生数!I44 -> 39
A31: 4.5～5.0㎏ | B31: 0 | C31: 0 | D31: 0 | E31: ・ | F31: 0 | G31: 0 | H31: 0 | I31: ・ | J31: 0 | K31: 0 | L31: 0 | N31: =[1]出生数!G45 -> 2 | O31: =[1]出生数!H45 -> 1 | P31: =[1]出生数!I45 -> 1
A32: 5.0㎏以上 | B32: 0 | C32: 0 | D32: 0 | E32: ・ | F32: 0 | G32: 0 | H32: 0 | I32: ・ | J32: 0 | K32: 0 | L32: 0 | N32: =[1]出生数!G46 -> 1 | O32: =[1]出生数!H46 -> 1 | P32: =[1]出生数!I46 -> 0

Sheet 月・区別，22週以後－早期新生児別周産期死亡数
A1: 区・月別にみた妊娠満22週以後の死産-早期新生児死亡別周産期死亡数
A3: 区 | B3: 総数 | C3: １月 | D3: ２月 | E3: ３月 | F3: ４月 | G3: ５月 | H3: ６月 | I3: ７月 | J3: ８月 | K3: ９月 | L3: １０月 | M3: １１月 | N3: １２月 | Q3: データの個数 : 客体区分 | S3: 発生月
B4: 周産期死亡数 | Q4: 時期区分 | R4: 区コード | S4: 1 | T4: 2 | U4: 3 | V4: 4 | W4: 5 | X4: 6 | Y4: 7 | Z4: 8 | AA4: 9 | AB4: 10 | AC4: 11 | AD4: 12 | AE4: 総計
A5: 総数 | B5: =SUM(B17,B29) -> 0 | C5: =SUM(C17,C29) -> 0 | D5: 0 | E5: 0 | F5: 0 | G5: 0 | H5: 0 | I5: 0 | J5: 0 | K5: 0 | L5: 0 | M5: 0 | N5: 0 | Q5: 死産 | R5: 10 中央区 | S5: 0 | T5: 1 | U5: 0 | V5: 1 | W5: 1 | X5: 0 | Y5: 0 | Z5: 0 | AA5: 0 | AB5: 0 | AC5: 0 | AD5: 1 | AE5: 4
A6: 中央 | B6: =SUM(B18,B30) -> 0 | C6: 0 | D6: 0 | E6: 0 | F6: 0 | G6: 0 | H6: 0 | I6: 0 | J6: 0 | K6: 0 | L6: 0 | M6: 0 | N6: 0 | R6: 20 北区 | S6: 1 | T6: 0 | U6: 2 | V6: 0 | W6: 0 | X6: 0 | Y6: 1 | Z6: 1 | AA6: 2 | AB6: 1 | AC6: 0 | AD6: 0 | AE6: 8
A7: 北 | B7: =SUM(B19,B31) -> 0 | C7: 0 | D7: 0 | E7: 0 | F7: 0 | G7: 0 | H7: 0 | I7: 0 | J7: 0 | K7: 0 | L7: 0 | M7: 0 | N7: 0 | R7: 30 東区 | S7: 1 | T7: 1 | U7: 1 | V7: 1 | W7: 1 | X7: 1 | Y7: 1 | Z7: 2 | AA7: 2 | AB7: 1 | AC7: 1 | AD7: 5 | AE7: 18
A8: 東 | B8: =SUM(B20,B32) -> 0 | C8: 0 | D8: 0 | E8: 0 | F8: 0 | G8: 0 | H8: 0 | I8: 0 | J8: 0 | K8: 0 | L8: 0 | M8: 0 | N8: 0 | R8: 40 白石区 | S8: 0 | T8: 0 | U8: 3 | V8: 0 | W8: 0 | X8: 0 | Y8: 1 | Z8: 0 | AA8: 0 | AB8: 0 | AC8: 0 | AD8: 1 | AE8: 5
A9: 白石 | B9: =SUM(B21,B33) -> 0 | C9: 0 | D9: 0 | E9: 0 | F9: 0 | G9: 0 | H9: 0 | I9: 0 | J9: 0 | K9: 0 | L9: 0 | M9: 0 | N9: 0 | R9: 45 厚別区 | S9: 0 | T9: 1 | U9: 0 | V9: 0 | W9: 0 | X9: 0 | Y9: 0 | Z9: 0 | AA9: 1 | AB9: 1 | AC9: 0 | AD9: 2 | AE9: 5
A10: 厚別 | B10: =SUM(B22,B34) -> 0 | C10: 0 | D10: 0 | E10: 0 | F10: 0 | G10: 0 | H10: 0 | I10: 0 | J10: 0 | K10: 0 | L10: 0 | M10: 0 | N10: 0 | R10: 50 豊平区 | S10: 0 | T10: 1 | U10: 0 | V10: 0 | W10: 0 | X10: 2 | Y10: 1 | Z10: 3 | AA10: 2 | AB10: 1 | AC10: 0 | AD10: 2 | AE10: 12
A11: 豊平 | B11: =SUM(B23,B35) -> 0 | C11: 0 | D11: 0 | E11: 0 | F11: 0 | G11: 0 | H11: 0 | I11: 0 | J11: 0 | K11: 0 | L11: 0 | M11: 0 | N11: 0 | R11: 55 清田区 | S11: 2 | T11: 0 | U11: 2 | V11: 0 | W11: 0 | X11: 0 | Y11: 1 | Z11: 0 | AA11: 0 | AB11: 1 | AC11: 1 | AD11: 0 | AE11: 7
A12: 清田 | B12: =SUM(B24,B36) -> 0 | C12: 0 | D12: 0 | E12: 0 | F12: 0 | G12: 0 | H12: 0 | I12: 0 | J12: 0 | K12: 0 | L12: 0 | M12: 0 | N12: 0 | R12: 60 南区 | S12: 0 | T12: 0 | U12: 2 | V12: 0 | W12: 0 | X12: 0 | Y12: 0 | Z12: 0 | AA12: 0 | AB12: 2 | AC12: 0 | AD12: 0 | AE12: 4
A13: 南 | B13: =SUM(B25,B37) -> 0 | C13: 0 | D13: 0 | E13: 0 | F13: 0 | G13: 0 | H13: 0 | I13: 0 | J13: 0 | K13: 0 | L13: 0 | M13: 0 | N13: 0 | R13: 70 西区 | S13: 0 | T13: 0 | U13: 0 | V13: 0 | W13: 1 | X13: 1 | Y13: 1 | Z13: 0 | AA13: 3 | AB13: 1 | AC13: 1 | AD13: 0 | AE13: 8
A14: 西 | B14: =SUM(B26,B38) -> 0 | C14: 0 | D14: 0 | E14: 0 | F14: 0 | G14: 0 | H14: 0 | I14: 0 | J14: 0 | K14: 0 | L14: 0 | M14: 0 | N14: 0 | R14: 75 手稲区 | S14: 1 | T14: 0 | U14: 0 | V14: 1 | W14: 1 | X14: 1 | Y14: 1 | Z14: 0 | AA14: 1 | AB14: 0 | AC14: 0 | AD14: 0 | AE14: 6
A15: 手稲 | B15: =SUM(B27,B39) -> 0 | C15: 0 | D15: 0 | E15: 0 | F15: 0 | G15: 0 | H15: 0 | I15: 0 | J15: 0 | K15: 0 | L15: 0 | M15: 0 | N15: 0 | Q15: 死産 計 | S15: 5 | T15: 4 | U15: 10 | V15: 3 | W15: 4 | X15: 5 | Y15: 7 | Z15: 6 | AA15: 11 | AB15: 8 | AC15: 3 | AD15: 11 | AE15: 77
B16: 妊娠満22週以後の死産数 | Q16: 死亡 | R16: 10 中央区 | S16: 0 | T16: 0 | U16: 0 | V16: 0 | W16: 0 | X16: 0 | Y16: 0 | Z16: 0 | AA16: 0 | AB16: 1 | AC16: 0 | AD16: 0 | AE16: 1
A17: 総数 | B17: =SUM(C17:N17) -> 0 | C17: =SUM(C18:C27) -> 0 | D17: =SUM(D18:D27) -> 0 | E17: 0 | F17: 0 | G17: 0 | H17: 0 | I17: 0 | J17: 0 | K17: 0 | L17: 0 | M17: 0 | N17: 0 | R17: 20 北区 | S17: 0 | T17: 0 | U17: 0 | V17: 0 | W17: 0 | X17: 0 | Y17: 0 | Z17: 0 | AA17: 0 | AB17: 1 | AC17: 0 | AD17: 0 | AE17: 1
A18: 中央 | B18: =SUM(C18:N18) -> 0 | R18: 30 東区 | S18: 0 | T18: 0 | U18: 0 | V18: 0 | W18: 0 | X18: 2 | Y18: 0 | Z18: 0 | AA18: 0 | AB18: 1 | AC18: 0 | AD18: 0 | AE18: 3
A19: 北 | B19: =SUM(C19:N19) -> 0 | R19: 40 白石区 | S19: 0 | T19: 0 | U19: 0 | V19: 0 | W19: 0 | X19: 1 | Y19: 0 | Z19: 0 | AA19: 0 | AB19: 0 | AC19: 0 | AD19: 0 | AE19: 1
A20: 東 | B20: 0 | R20: 50 豊平区 | S20: 0 | T20: 1 | U20: 0 | V20: 0 | W20: 0 | X20: 0 | Y20: 0 | Z20: 0 | AA20: 1 | AB20: 0 | AC20: 0 | AD20: 0 | AE20: 2
A21: 白石 | B21: 0 | R21: 70 西区 | S21: 1 | T21: 0 | U21: 0 | V21: 0 | W21: 0 | X21: 0 | Y21: 0 | Z21: 0 | AA21: 0 | AB21: 1 | AC21: 0 | AD21: 0 | AE21: 2
A22: 厚別 | B22: 0 | Q22: 死亡 計 | S22: 1 | T22: 1 | U22: 0 | V22: 0 | W22: 0 | X22: 3 | Y22: 0 | Z22: 0 | AA22: 1 | AB22: 4 | AC22: 0 | AD22: 0 | AE22: 10
A23: 豊平 | B23: 0 | Q23: 総計 | S23: 6 | T23: 5 | U23: 10 | V23: 3 | W23: 4 | X23: 8 | Y23: 7 | Z23: 6 | AA23: 12 | AB23: 12 | AC23: 3 | AD23: 11 | AE23: 87
A24: 清田 | B24: 0
A25: 南 | B25: 0
A26: 西 | B26: 0
A27: 手稲 | B27: 0
B28: 早期新生児死亡数
A29: 総数 | B29: =SUM(C29:N29) -> 0 | C29: =SUM(C30:C39) -> 0 | D29: 0 | E29: 0 | F29: 0 | G29: 0 | H29: 0 | I29: 0 | J29: 0 | K29: 0 | L29: 0 | M29: 0 | N29: 0
A30: 中央 | B30: =SUM(C30:N30) -> 0
A31: 北 | B31: =SUM(C31:N31) -> 0
A32: 東 | B32: 0
A33: 白石 | B33: 0
A34: 厚別 | B34: 0
A35: 豊平 | B35: 0
A36: 清田 | B36: 0
A37: 南 | B37: 0
A38: 西 | B38: 0
A39: 手稲 | B39: 0

Sheet 月・区別，22週以後－早期新生児別周産期死亡率
A1: 区・月別にみた妊娠満22週以後の死産-早期新生児死亡別周産期死亡率
A3: 区 | B3: 総数 | C3: １月 | D3: ２月 | E3: ３月 | F3: ４月 | G3: ５月 | H3: ６月 | I3: ７月 | J3: ８月 | K3: ９月 | L3: １０月 | M3: １１月 | N3: １２月
B4: 周産期死亡率(出産千対） | Q4: =[1]出生数!G3 -> 総数 | R4: =[1]出生数!U3 -> １２月 | S4: =[1]出生数!V3 -> １月 | T4: =[1]出生数!W3 -> ２月 | U4: =[1]出生数!X3 -> ３月 | V4: =[1]出生数!Y3 -> ４月 | W4: =[1]出生数!Z3 -> ５月 | X4: =[1]出生数!AA3 -> ６月 | Y4: =[1]出生数!AB3 -> ７月 | Z4: =[1]出生数!AC3 -> ８月 | AA4: =[1]出生数!AD3 -> ９月 | AB4: =[1]出生数!AE3 -> １０月 | AC4: =[1]出生数!AF3 -> １１月 | AD4: =[1]出生数!AG3 -> １２月
A5: 総数 | B5: ='月・区別，22週以後－早期新生児別周産期死亡数'!B5/('月・区別，22週以後－早期新生児別周産期死亡数'!B17+'月・区別，22週以後－早期新生児別周産期死亡率'!Q5)*1000 -> 0 | C5: ='月・区別，22週以後－早期新生児別周産期死亡数'!C5/('月・区別，22週以後－早期新生児別周産期死亡数'!C17+'月・区別，22週以後－早期新生児別周産期死亡率'!R5)*1000 -> 0 | D5: ='月・区別，22週以後－早期新生児別周産期死亡数'!D5/('月・区別，22週以後－早期新生児別周産期死亡数'!D17+'月・区別，22週以後－早期新生児別周産期死亡率'!S5)*1000 -> 0 | E5: ='月・区別，22週以後－早期新生児別周産期死亡数'!E5/('月・区別，22週以後－早期新生児別周産期死亡数'!E17+'月・区別，22週以後－早期新生児別周産期死亡率'!T5)*1000 -> 0 | F5: ='月・区別，22週以後－早期新生児別周産期死亡数'!F5/('月・区別，22週以後－早期新生児別周産期死亡数'!F17+'月・区別，22週以後－早期新生児別周産期死亡率'!U5)*1000 -> 0 | G5: ='月・区別，22週以後－早期新生児別周産期死亡数'!G5/('月・区別，22週以後－早期新生児別周産期死亡数'!G17+'月・区別，22週以後－早期新生児別周産期死亡率'!V5)*1000 -> 0 | H5: ='月・区別，22週以後－早期新生児別周産期死亡数'!H5/('月・区別，22週以後－早期新生児別周産期死亡数'!H17+'月・区別，22週以後－早期新生児別周産期死亡率'!W5)*1000 -> 0 | I5: ='月・区別，22週以後－早期新生児別周産期死亡数'!I5/('月・区別，22週以後－早期新生児別周産期死亡数'!I17+'月・区別，22週以後－早期新生児別周産期死亡率'!X5)*1000 -> 0 | J5: ='月・区別，22週以後－早期新生児別周産期死亡数'!J5/('月・区別，22週以後－早期新生児別周産期死亡数'!J17+'月・区別，22週以後－早期新生児別周産期死亡率'!Y5)*1000 -> 0 | K5: ='月・区別，22週以後－早期新生児別周産期死亡数'!K5/('月・区別，22週以後－早期新生児別周産期死亡数'!K17+'月・区別，22週以後－早期新生児別周産期死亡率'!Z5)*1000 -> 0 | L5: ='月・区別，22週以後－早期新生児別周産期死亡数'!L5/('月・区別，22週以後－早期新生児別周産期死亡数'!L17+'月・区別，22週以後－早期新生児別周産期死亡率'!AA5)*1000 -> 0 | M5: ='月・区別，22週以後－早期新生児別周産期死亡数'!M5/('月・区別，22週以後－早期新生児別周産期死亡数'!M17+'月・区別，22週以後－早期新生児別周産期死亡率'!AB5)*1000 -> 0 | N5: ='月・区別，22週以後－早期新生児別周産期死亡数'!N5/('月・区別，22週以後－早期新生児別周産期死亡数'!N17+'月・区別，22週以後－早期新生児別周産期死亡率'!AC5)*1000 -> 0 | Q5: =[1]出生数!G4 -> 13248 | R5: =[1]出生数!U4 -> 1081 | S5: =[1]出生数!V4 -> 1135 | T5: =[1]出生数!W4 -> 1067 | U5: =[1]出生数!X4 -> 1078 | V5: =[1]出生数!Y4 -> 1067 | W5: =[1]出生数!Z4 -> 1128 | X5: =[1]出生数!AA4 -> 1110 | Y5: =[1]出生数!AB4 -> 1127 | Z5: =[1]出生数!AC4 -> 1218 | AA5: =[1]出生数!AD4 -> 1087 | AB5: =[1]出生数!AE4 -> 1179 | AC5: =[1]出生数!AF4 -> 1035 | AD5: =[1]出生数!AG4 -> 1017
A6: 中央 | B6: ='月・区別，22週以後－早期新生児別周産期死亡数'!B6/('月・区別，22週以後－早期新生児別周産期死亡数'!B18+'月・区別，22週以後－早期新生児別周産期死亡率'!Q6)*1000 -> 0 | C6: ='月・区別，22週以後－早期新生児別周産期死亡数'!C6/('月・区別，22週以後－早期新生児別周産期死亡数'!C18+'月・区別，22週以後－早期新生児別周産期死亡率'!R6)*1000 -> 0 | D6: ='月・区別，22週以後－早期新生児別周産期死亡数'!D6/('月・区別，22週以後－早期新生児別周産期死亡数'!D18+'月・区別，22週以後－早期新生児別周産期死亡率'!S6)*1000 -> 0 | E6: ='月・区別，22週以後－早期新生児別周産期死亡数'!E6/('月・区別，22週以後－早期新生児別周産期死亡数'!E18+'月・区別，22週以後－早期新生児別周産期死亡率'!T6)*1000 -> 0 | F6: ='月・区別，22週以後－早期新生児別周産期死亡数'!F6/('月・区別，22週以後－早期新生児別周産期死亡数'!F18+'月・区別，22週以後－早期新生児別周産期死亡率'!U6)*1000 -> 0 | G6: ='月・区別，22週以後－早期新生児別周産期死亡数'!G6/('月・区別，22週以後－早期新生児別周産期死亡数'!G18+'月・区別，22週以後－早期新生児別周産期死亡率'!V6)*1000 -> 0 | H6: ='月・区別，22週以後－早期新生児別周産期死亡数'!H6/('月・区別，22週以後－早期新生児別周産期死亡数'!H18+'月・区別，22週以後－早期新生児別周産期死亡率'!W6)*1000 -> 0 | I6: ='月・区別，22週以後－早期新生児別周産期死亡数'!I6/('月・区別，22週以後－早期新生児別周産期死亡数'!I18+'月・区別，22週以後－早期新生児別周産期死亡率'!X6)*1000 -> 0 | J6: ='月・区別，22週以後－早期新生児別周産期死亡数'!J6/('月・区別，22週以後－早期新生児別周産期死亡数'!J18+'月・区別，22週以後－早期新生児別周産期死亡率'!Y6)*1000 -> 0 | K6: ='月・区別，22週以後－早期新生児別周産期死亡数'!K6/('月・区別，22週以後－早期新生児別周産期死亡数'!K18+'月・区別，22週以後－早期新生児別周産期死亡率'!Z6)*1000 -> 0 | L6: ='月・区別，22週以後－早期新生児別周産期死亡数'!L6/('月・区別，22週以後－早期新生児別周産期死亡数'!L18+'月・区別，22週以後－早期新生児別周産期死亡率'!AA6)*1000 -> 0 | M6: ='月・区別，22週以後－早期新生児別周産期死亡数'!M6/('月・区別，22週以後－早期新生児別周産期死亡数'!M18+'月・区別，22週以後－早期新生児別周産期死亡率'!AB6)*1000 -> 0 | N6: ='月・区別，22週以後－早期新生児別周産期死亡数'!N6/('月・区別，22週以後－早期新生児別周産期死亡数'!N18+'月・区別，22週以後－早期新生児別周産期死亡率'!AC6)*1000 -> 0 | Q6: =[1]出生数!G5 -> 1744 | R6: =[1]出生数!U5 -> 138 | S6: =[1]出生数!V5 -> 137 | T6: =[1]出生数!W5 -> 152 | U6: =[1]出生数!X5 -> 150 | V6: =[1]出生数!Y5 -> 133 | W6: =[1]出生数!Z5 -> 155 | X6: =[1]出生数!AA5 -> 145 | Y6: =[1]出生数!AB5 -> 133 | Z6: =[1]出生数!AC5 -> 167 | AA6: =[1]出生数!AD5 -> 133 | AB6: =[1]出生数!AE5 -> 165 | AC6: =[1]出生数!AF5 -> 127 | AD6: =[1]出生数!AG5 -> 147
A7: 北 | B7: ='月・区別，22週以後－早期新生児別周産期死亡数'!B7/('月・区別，22週以後－早期新生児別周産期死亡数'!B19+'月・区別，22週以後－早期新生児別周産期死亡率'!Q7)*1000 -> 0 | C7: ='月・区別，22週以後－早期新生児別周産期死亡数'!C7/('月・区別，22週以後－早期新生児別周産期死亡数'!C19+'月・区別，22週以後－早期新生児別周産期死亡率'!R7)*1000 -> 0 | D7: ='月・区別，22週以後－早期新生児別周産期死亡数'!D7/('月・区別，22週以後－早期新生児別周産期死亡数'!D19+'月・区別，22週以後－早期新生児別周産期死亡率'!S7)*1000 -> 0 | E7: ='月・区別，22週以後－早期新生児別周産期死亡数'!E7/('月・区別，22週以後－早期新生児別周産期死亡数'!E19+'月・区別，22週以後－早期新生児別周産期死亡率'!T7)*1000 -> 0 | F7: ='月・区別，22週以後－早期新生児別周産期死亡数'!F7/('月・区別，22週以後－早期新生児別周産期死亡数'!F19+'月・区別，22週以後－早期新生児別周産期死亡率'!U7)*1000 -> 0 | G7: ='月・区別，22週以後－早期新生児別周産期死亡数'!G7/('月・区別，22週以後－早期新生児別周産期死亡数'!G19+'月・区別，22週以後－早期新生児別周産期死亡率'!V7)*1000 -> 0 | H7: ='月・区別，22週以後－早期新生児別周産期死亡数'!H7/('月・区別，22週以後－早期新生児別周産期死亡数'!H19+'月・区別，22週以後－早期新生児別周産期死亡率'!W7)*1000 -> 0 | I7: ='月・区別，22週以後－早期新生児別周産期死亡数'!I7/('月・区別，22週以後－早期新生児別周産期死亡数'!I19+'月・区別，22週以後－早期新生児別周産期死亡率'!X7)*1000 -> 0 | J7: ='月・区別，22週以後－早期新生児別周産期死亡数'!J7/('月・区別，22週以後－早期新生児別周産期死亡数'!J19+'月・区別，22週以後－早期新生児別周産期死亡率'!Y7)*1000 -> 0 | K7: ='月・区別，22週以後－早期新生児別周産期死亡数'!K7/('月・区別，22週以後－早期新生児別周産期死亡数'!K19+'月・区別，22週以後－早期新生児別周産期死亡率'!Z7)*1000 -> 0 | L7: ='月・区別，22週以後－早期新生児別周産期死亡数'!L7/('月・区別，22週以後－早期新生児別周産期死亡数'!L19+'月・区別，22週以後－早期新生児別周産期死亡率'!AA7)*1000 -> 0 | M7: ='月・区別，22週以後－早期新生児別周産期死亡数'!M7/('月・区別，22週以後－早期新生児別周産期死亡数'!M19+'月・区別，22週以後－早期新生児別周産期死亡率'!AB7)*1000 -> 0 | N7: ='月・区別，22週以後－早期新生児別周産期死亡数'!N7/('月・区別，22週以後－早期新生児別周産期死亡数'!N19+'月・区別，22週以後－早期新生児別周産期死亡率'!AC7)*1000 -> 0 | Q7: =[1]出生数!G6 -> 1847 | R7: =[1]出生数!U6 -> 92 | S7: =[1]出生数!V6 -> 169 | T7: =[1]出生数!W6 -> 139 | U7: =[1]出生数!X6 -> 137 | V7: =[1]出生数!Y6 -> 137 | W7: =[1]出生数!Z6 -> 174 | X7: =[1]出生数!AA6 -> 164 | Y7: =[1]出生数!AB6 -> 166 | Z7: =[1]出生数!AC6 -> 183 | AA7: =[1]出生数!AD6 -> 138 | AB7: =[1]出生数!AE6 -> 168 | AC7: =[1]出生数!AF6 -> 138 | AD7: =[1]出生数!AG6 -> 134
A8: 東 | B8: ='月・区別，22週以後－早期新生児別周産期死亡数'!B8/('月・区別，22週以後－早期新生児別周産期死亡数'!B20+'月・区別，22週以後－早期新生児別周産期死亡率'!Q8)*1000 -> 0 | C8: ='月・区別，22週以後－早期新生児別周産期死亡数'!C8/('月・区別，22週以後－早期新生児別周産期死亡数'!C20+'月・区別，22週以後－早期新生児別周産期死亡率'!R8)*1000 -> 0 | D8: ='月・区別，22週以後－早期新生児別周産期死亡数'!D8/('月・区別，22週以後－早期新生児別周産期死亡数'!D20+'月・区別，22週以後－早期新生児別周産期死亡率'!S8)*1000 -> 0 | E8: ='月・区別，22週以後－早期新生児別周産期死亡数'!E8/('月・区別，22週以後－早期新生児別周産期死亡数'!E20+'月・区別，22週以後－早期新生児別周産期死亡率'!T8)*1000 -> 0 | F8: ='月・区別，22週以後－早期新生児別周産期死亡数'!F8/('月・区別，22週以後－早期新生児別周産期死亡数'!F20+'月・区別，22週以後－早期新生児別周産期死亡率'!U8)*1000 -> 0 | G8: ='月・区別，22週以後－早期新生児別周産期死亡数'!G8/('月・区別，22週以後－早期新生児別周産期死亡数'!G20+'月・区別，22週以後－早期新生児別周産期死亡率'!V8)*1000 -> 0 | H8: ='月・区別，22週以後－早期新生児別周産期死亡数'!H8/('月・区別，22週以後－早期新生児別周産期死亡数'!H20+'月・区別，22週以後－早期新生児別周産期死亡率'!W8)*1000 -> 0 | I8: ='月・区別，22週以後－早期新生児別周産期死亡数'!I8/('月・区別，22週以後－早期新生児別周産期死亡数'!I20+'月・区別，22週以後－早期新生児別周産期死亡率'!X8)*1000 -> 0 | J8: ='月・区別，22週以後－早期新生児別周産期死亡数'!J8/('月・区別，22週以後－早期新生児別周産期死亡数'!J20+'月・区別，22週以後－早期新生児別周産期死亡率'!Y8)*1000 -> 0 | K8: ='月・区別，22週以後－早期新生児別周産期死亡数'!K8/('月・区別，22週以後－早期新生児別周産期死亡数'!K20+'月・区別，22週以後－早期新生児別周産期死亡率'!Z8)*1000 -> 0 | L8: ='月・区別，22週以後－早期新生児別周産期死亡数'!L8/('月・区別，22週以後－早期新生児別周産期死亡数'!L20+'月・区別，22週以後－早期新生児別周産期死亡率'!AA8)*1000 -> 0 | M8: ='月・区別，22週以後－早期新生児別周産期死亡数'!M8/('月・区別，22週以後－早期新生児別周産期死亡数'!M20+'月・区別，22週以後－早期新生児別周産期死亡率'!AB8)*1000 -> 0 | N8: ='月・区別，22週以後－早期新生児別周産期死亡数'!N8/('月・区別，22週以後－早期新生児別周産期死亡数'!N20+'月・区別，22週以後－早期新生児別周産期死亡率'!AC8)*1000 -> 0 | Q8: =[1]出生数!G7 -> 1978 | R8: =[1]出生数!U7 -> 175 | S8: =[1]出生数!V7 -> 167 | T8: =[1]出生数!W7 -> 132 | U8: =[1]出生数!X7 -> 161 | V8: =[1]出生数!Y7 -> 171 | W8: =[1]出生数!Z7 -> 162 | X8: =[1]出生数!AA7 -> 165 | Y8: =[1]出生数!AB7 -> 179 | Z8: =[1]出生数!AC7 -> 171 | AA8: =[1]出生数!AD7 -> 191 | AB8: =[1]出生数!AE7 -> 184 | AC8: =[1]出生数!AF7 -> 149 | AD8: =[1]出生数!AG7 -> 146
A9: 白石 | B9: ='月・区別，22週以後－早期新生児別周産期死亡数'!B9/('月・区別，22週以後－早期新生児別周産期死亡数'!B21+'月・区別，22週以後－早期新生児別周産期死亡率'!Q9)*1000 -> 0 | C9: ='月・区別，22週以後－早期新生児別周産期死亡数'!C9/('月・区別，22週以後－早期新生児別周産期死亡数'!C21+'月・区別，22週以後－早期新生児別周産期死亡率'!R9)*1000 -> 0 | D9: ='月・区別，22週以後－早期新生児別周産期死亡数'!D9/('月・区別，22週以後－早期新生児別周産期死亡数'!D21+'月・区別，22週以後－早期新生児別周産期死亡率'!S9)*1000 -> 0 | E9: ='月・区別，22週以後－早期新生児別周産期死亡数'!E9/('月・区別，22週以後－早期新生児別周産期死亡数'!E21+'月・区別，22週以後－早期新生児別周産期死亡率'!T9)*1000 -> 0 | F9: ='月・区別，22週以後－早期新生児別周産期死亡数'!F9/('月・区別，22週以後－早期新生児別周産期死亡数'!F21+'月・区別，22週以後－早期新生児別周産期死亡率'!U9)*1000 -> 0 | G9: ='月・区別，22週以後－早期新生児別周産期死亡数'!G9/('月・区別，22週以後－早期新生児別周産期死亡数'!G21+'月・区別，22週以後－早期新生児別周産期死亡率'!V9)*1000 -> 0 | H9: ='月・区別，22週以後－早期新生児別周産期死亡数'!H9/('月・区別，22週以後－早期新生児別周産期死亡数'!H21+'月・区別，22週以後－早期新生児別周産期死亡率'!W9)*1000 -> 0 | I9: ='月・区別，22週以後－早期新生児別周産期死亡数'!I9/('月・区別，22週以後－早期新生児別周産期死亡数'!I21+'月・区別，22週以後－早期新生児別周産期死亡率'!X9)*1000 -> 0 | J9: ='月・区別，22週以後－早期新生児別周産期死亡数'!J9/('月・区別，22週以後－早期新生児別周産期死亡数'!J21+'月・区別，22週以後－早期新生児別周産期死亡率'!Y9)*1000 -> 0 | K9: ='月・区別，22週以後－早期新生児別周産期死亡数'!K9/('月・区別，22週以後－早期新生児別周産期死亡数'!K21+'月・区別，22週以後－早期新生児別周産期死亡率'!Z9)*1000 -> 0 | L9: ='月・区別，22週以後－早期新生児別周産期死亡数'!L9/('月・区別，22週以後－早期新生児別周産期死亡数'!L21+'月・区別，22週以後－早期新生児別周産期死亡率'!AA9)*1000 -> 0 | M9: ='月・区別，22週以後－早期新生児別周産期死亡数'!M9/('月・区別，22週以後－早期新生児別周産期死亡数'!M21+'月・区別，22週以後－早期新生児別周産期死亡率'!AB9)*1000 -> 0 | N9: ='月・区別，22週以後－早期新生児別周産期死亡数'!N9/('月・区別，22週以後－早期新生児別周産期死亡数'!N21+'月・区別，22週以後－早期新生児別周産期死亡率'!AC9)*1000 -> 0 | Q9: =[1]出生数!G8 -> 1711 | R9: =[1]出生数!U8 -> 133 | S9: =[1]出生数!V8 -> 144 | T9: =[1]出生数!W8 -> 148 | U9: =[1]出生数!X8 -> 123 | V9: =[1]出生数!Y8 -> 138 | W9: =[1]出生数!Z8 -> 139 | X9: =[1]出生数!AA8 -> 138 | Y9: =[1]出生数!AB8 -> 143 | Z9: =[1]出生数!AC8 -> 145 | AA9: =[1]出生数!AD8 -> 138 | AB9: =[1]出生数!AE8 -> 168 | AC9: =[1]出生数!AF8 -> 155 | AD9: =[1]出生数!AG8 -> 132
A10: 厚別 | B10: ='月・区別，22週以後－早期新生児別周産期死亡数'!B10/('月・区別，22週以後－早期新生児別周産期死亡数'!B22+'月・区別，22週以後－早期新生児別周産期死亡率'!Q10)*1000 -> 0 | C10: ='月・区別，22週以後－早期新生児別周産期死亡数'!C10/('月・区別，22週以後－早期新生児別周産期死亡数'!C22+'月・区別，22週以後－早期新生児別周産期死亡率'!R10)*1000 -> 0 | D10: ='月・区別，22週以後－早期新生児別周産期死亡数'!D10/('月・区別，22週以後－早期新生児別周産期死亡数'!D22+'月・区別，22週以後－早期新生児別周産期死亡率'!S10)*1000 -> 0 | E10: ='月・区別，22週以後－早期新生児別周産期死亡数'!E10/('月・区別，22週以後－早期新生児別周産期死亡数'!E22+'月・区別，22週以後－早期新生児別周産期死亡率'!T10)*1000 -> 0 | F10: ='月・区別，22週以後－早期新生児別周産期死亡数'!F10/('月・区別，22週以後－早期新生児別周産期死亡数'!F22+'月・区別，22週以後－早期新生児別周産期死亡率'!U10)*1000 -> 0 | G10: ='月・区別，22週以後－早期新生児別周産期死亡数'!G10/('月・区別，22週以後－早期新生児別周産期死亡数'!G22+'月・区別，22週以後－早期新生児別周産期死亡率'!V10)*1000 -> 0 | H10: ='月・区別，22週以後－早期新生児別周産期死亡数'!H10/('月・区別，22週以後－早期新生児別周産期死亡数'!H22+'月・区別，22週以後－早期新生児別周産期死亡率'!W10)*1000 -> 0 | I10: ='月・区別，22週以後－早期新生児別周産期死亡数'!I10/('月・区別，22週以後－早期新生児別周産期死亡数'!I22+'月・区別，22週以後－早期新生児別周産期死亡率'!X10)*1000 -> 0 | J10: ='月・区別，22週以後－早期新生児別周産期死亡数'!J10/('月・区別，22週以後－早期新生児別周産期死亡数'!J22+'月・区別，22週以後－早期新生児別周産期死亡率'!Y10)*1000 -> 0 | K10: ='月・区別，22週以後－早期新生児別周産期死亡数'!K10/('月・区別，22週以後－早期新生児別周産期死亡数'!K22+'月・区別，22週以後－早期新生児別周産期死亡率'!Z10)*1000 -> 0 | L10: ='月・区別，22週以後－早期新生児別周産期死亡数'!L10/('月・区別，22週以後－早期新生児別周産期死亡数'!L22+'月・区別，22週以後－早期新生児別周産期死亡率'!AA10)*1000 -> 0 | M10: ='月・区別，22週以後－早期新生児別周産期死亡数'!M10/('月・区別，22週以後－早期新生児別周産期死亡数'!M22+'月・区別，22週以後－早期新生児別周産期死亡率'!AB10)*1000 -> 0 | N10: ='月・区別，22週以後－早期新生児別周産期死亡数'!N10/('月・区別，22週以後－早期新生児別周産期死亡数'!N22+'月・区別，22週以後－早期新生児別周産期死亡率'!AC10)*1000 -> 0 | Q10: =[1]出生数!G9 -> 661 | R10: =[1]出生数!U9 -> 55 | S10: =[1]出生数!V9 -> 53 | T10: =[1]出生数!W9 -> 53 | U10: =[1]出生数!X9 -> 50 | V10: =[1]出生数!Y9 -> 60 | W10: =[1]出生数!Z9 -> 41 | X10: =[1]出生数!AA9 -> 50 | Y10: =[1]出生数!AB9 -> 48 | Z10: =[1]出生数!AC9 -> 81 | AA10: =[1]出生数!AD9 -> 67 | AB10: =[1]出生数!AE9 -> 52 | AC10: =[1]出生数!AF9 -> 52 | AD10: =[1]出生数!AG9 -> 54
A11: 豊平 | B11: ='月・区別，22週以後－早期新生児別周産期死亡数'!B11/('月・区別，22週以後－早期新生児別周産期死亡数'!B23+'月・区別，22週以後－早期新生児別周産期死亡率'!Q11)*1000 -> 0 | C11: ='月・区別，22週以後－早期新生児別周産期死亡数'!C11/('月・区別，22週以後－早期新生児別周産期死亡数'!C23+'月・区別，22週以後－早期新生児別周産期死亡率'!R11)*1000 -> 0 | D11: ='月・区別，22週以後－早期新生児別周産期死亡数'!D11/('月・区別，22週以後－早期新生児別周産期死亡数'!D23+'月・区別，22週以後－早期新生児別周産期死亡率'!S11)*1000 -> 0 | E11: ='月・区別，22週以後－早期新生児別周産期死亡数'!E11/('月・区別，22週以後－早期新生児別周産期死亡数'!E23+'月・区別，22週以後－早期新生児別周産期死亡率'!T11)*1000 -> 0 | F11: ='月・区別，22週以後－早期新生児別周産期死亡数'!F11/('月・区別，22週以後－早期新生児別周産期死亡数'!F23+'月・区別，22週以後－早期新生児別周産期死亡率'!U11)*1000 -> 0 | G11: ='月・区別，22週以後－早期新生児別周産期死亡数'!G11/('月・区別，22週以後－早期新生児別周産期死亡数'!G23+'月・区別，22週以後－早期新生児別周産期死亡率'!V11)*1000 -> 0 | H11: ='月・区別，22週以後－早期新生児別周産期死亡数'!H11/('月・区別，22週以後－早期新生児別周産期死亡数'!H23+'月・区別，22週以後－早期新生児別周産期死亡率'!W11)*1000 -> 0 | I11: ='月・区別，22週以後－早期新生児別周産期死亡数'!I11/('月・区別，22週以後－早期新生児別周産期死亡数'!I23+'月・区別，22週以後－早期新生児別周産期死亡率'!X11)*1000 -> 0 | J11: ='月・区別，22週以後－早期新生児別周産期死亡数'!J11/('月・区別，22週以後－早期新生児別周産期死亡数'!J23+'月・区別，22週以後－早期新生児別周産期死亡率'!Y11)*1000 -> 0 | K11: ='月・区別，22週以後－早期新生児別周産期死亡数'!K11/('月・区別，22週以後－早期新生児別周産期死亡数'!K23+'月・区別，22週以後－早期新生児別周産期死亡率'!Z11)*1000 -> 0 | L11: ='月・区別，22週以後－早期新生児別周産期死亡数'!L11/('月・区別，22週以後－早期新生児別周産期死亡数'!L23+'月・区別，22週以後－早期新生児別周産期死亡率'!AA11)*1000 -> 0 | M11: ='月・区別，22週以後－早期新生児別周産期死亡数'!M11/('月・区別，22週以後－早期新生児別周産期死亡数'!M23+'月・区別，22週以後－早期新生児別周産期死亡率'!AB11)*1000 -> 0 | N11: ='月・区別，22週以後－早期新生児別周産期死亡数'!N11/('月・区別，22週以後－早期新生児別周産期死亡数'!N23+'月・区別，22週以後－早期新生児別周産期死亡率'!AC11)*1000 -> 0 | Q11: =[1]出生数!G10 -> 1682 | R11: =[1]出生数!U10 -> 154 | S11: =[1]出生数!V10 -> 169 | T11: =[1]出生数!W10 -> 154 | U11: =[1]出生数!X10 -> 141 | V11: =[1]出生数!Y10 -> 134 | W11: =[1]出生数!Z10 -> 132 | X11: =[1]出生数!AA10 -> 142 | Y11: =[1]出生数!AB10 -> 143 | Z11: =[1]出生数!AC10 -> 153 | AA11: =[1]出生数!AD10 -> 121 | AB11: =[1]出生数!AE10 -> 142 | AC11: =[1]出生数!AF10 -> 127 | AD11: =[1]出生数!AG10 -> 124
A12: 清田 | B12: ='月・区別，22週以後－早期新生児別周産期死亡数'!B12/('月・区別，22週以後－早期新生児別周産期死亡数'!B24+'月・区別，22週以後－早期新生児別周産期死亡率'!Q12)*1000 -> 0 | C12: ='月・区別，22週以後－早期新生児別周産期死亡数'!C12/('月・区別，22週以後－早期新生児別周産期死亡数'!C24+'月・区別，22週以後－早期新生児別周産期死亡率'!R12)*1000 -> 0 | D12: ='月・区別，22週以後－早期新生児別周産期死亡数'!D12/('月・区別，22週以後－早期新生児別周産期死亡数'!D24+'月・区別，22週以後－早期新生児別周産期死亡率'!S12)*1000 -> 0 | E12: ='月・区別，22週以後－早期新生児別周産期死亡数'!E12/('月・区別，22週以後－早期新生児別周産期死亡数'!E24+'月・区別，22週以後－早期新生児別周産期死亡率'!T12)*1000 -> 0 | F12: ='月・区別，22週以後－早期新生児別周産期死亡数'!F12/('月・区別，22週以後－早期新生児別周産期死亡数'!F24+'月・区別，22週以後－早期新生児別周産期死亡率'!U12)*1000 -> 0 | G12: ='月・区別，22週以後－早期新生児別周産期死亡数'!G12/('月・区別，22週以後－早期新生児別周産期死亡数'!G24+'月・区別，22週以後－早期新生児別周産期死亡率'!V12)*1000 -> 0 | H12: ='月・区別，22週以後－早期新生児別周産期死亡数'!H12/('月・区別，22週以後－早期新生児別周産期死亡数'!H24+'月・区別，22週以後－早期新生児別周産期死亡率'!W12)*1000 -> 0 | I12: ='月・区別，22週以後－早期新生児別周産期死亡数'!I12/('月・区別，22週以後－早期新生児別周産期死亡数'!I24+'月・区別，22週以後－早期新生児別周産期死亡率'!X12)*1000 -> 0 | J12: ='月・区別，22週以後－早期新生児別周産期死亡数'!J12/('月・区別，22週以後－早期新生児別周産期死亡数'!J24+'月・区別，22週以後－早期新生児別周産期死亡率'!Y12)*1000 -> 0 | K12: ='月・区別，22週以後－早期新生児別周産期死亡数'!K12/('月・区別，22週以後－早期新生児別周産期死亡数'!K24+'月・区別，22週以後－早期新生児別周産期死亡率'!Z12)*1000 -> 0 | L12: ='月・区別，22週以後－早期新生児別周産期死亡数'!L12/('月・区別，22週以後－早期新生児別周産期死亡数'!L24+'月・区別，22週以後－早期新生児別周産期死亡率'!AA12)*1000 -> 0 | M12: ='月・区別，22週以後－早期新生児別周産期死亡数'!M12/('月・区別，22週以後－早期新生児別周産期死亡数'!M24+'月・区別，22週以後－早期新生児別周産期死亡率'!AB12)*1000 -> 0 | N12: ='月・区別，22週以後－早期新生児別周産期死亡数'!N12/('月・区別，22週以後－早期新生児別周産期死亡数'!N24+'月・区別，22週以後－早期新生児別周産期死亡率'!AC12)*1000 -> 0 | Q12: =[1]出生数!G11 -> 644 | R12: =[1]出生数!U11 -> 44 | S12: =[1]出生数!V11 -> 52 | T12: =[1]出生数!W11 -> 61 | U12: =[1]出生数!X11 -> 57 | V12: =[1]出生数!Y11 -> 49 | W12: =[1]出生数!Z11 -> 56 | X12: =[1]出生数!AA11 -> 67 | Y12: =[1]出生数!AB11 -> 42 | Z12: =[1]出生数!AC11 -> 62 | AA12: =[1]出生数!AD11 -> 40 | AB12: =[1]出生数!AE11 -> 52 | AC12: =[1]出生数!AF11 -> 52 | AD12: =[1]出生数!AG11 -> 54
A13: 南 | B13: ='月・区別，22週以後－早期新生児別周産期死亡数'!B13/('月・区別，22週以後－早期新生児別周産期死亡数'!B25+'月・区別，22週以後－早期新生児別周産期死亡率'!Q13)*1000 -> 0 | C13: ='月・区別，22週以後－早期新生児別周産期死亡数'!C13/('月・区別，22週以後－早期新生児別周産期死亡数'!C25+'月・区別，22週以後－早期新生児別周産期死亡率'!R13)*1000 -> 0 | D13: ='月・区別，22週以後－早期新生児別周産期死亡数'!D13/('月・区別，22週以後－早期新生児別周産期死亡数'!D25+'月・区別，22週以後－早期新生児別周産期死亡率'!S13)*1000 -> 0 | E13: ='月・区別，22週以後－早期新生児別周産期死亡数'!E13/('月・区別，22週以後－早期新生児別周産期死亡数'!E25+'月・区別，22週以後－早期新生児別周産期死亡率'!T13)*1000 -> 0 | F13: ='月・区別，22週以後－早期新生児別周産期死亡数'!F13/('月・区別，22週以後－早期新生児別周産期死亡数'!F25+'月・区別，22週以後－早期新生児別周産期死亡率'!U13)*1000 -> 0 | G13: ='月・区別，22週以後－早期新生児別周産期死亡数'!G13/('月・区別，22週以後－早期新生児別周産期死亡数'!G25+'月・区別，22週以後－早期新生児別周産期死亡率'!V13)*1000 -> 0 | H13: ='月・区別，22週以後－早期新生児別周産期死亡数'!H13/('月・区別，22週以後－早期新生児別周産期死亡数'!H25+'月・区別，22週以後－早期新生児別周産期死亡率'!W13)*1000 -> 0 | I13: ='月・区別，22週以後－早期新生児別周産期死亡数'!I13/('月・区別，22週以後－早期新生児別周産期死亡数'!I25+'月・区別，22週以後－早期新生児別周産期死亡率'!X13)*1000 -> 0 | J13: ='月・区別，22週以後－早期新生児別周産期死亡数'!J13/('月・区別，22週以後－早期新生児別周産期死亡数'!J25+'月・区別，22週以後－早期新生児別周産期死亡率'!Y13)*1000 -> 0 | K13: ='月・区別，22週以後－早期新生児別周産期死亡数'!K13/('月・区別，22週以後－早期新生児別周産期死亡数'!K25+'月・区別，22週以後－早期新生児別周産期死亡率'!Z13)*1000 -> 0 | L13: ='月・区別，22週以後－早期新生児別周産期死亡数'!L13/('月・区別，22週以後－早期新生児別周産期死亡数'!L25+'月・区別，22週以後－早期新生児別周産期死亡率'!AA13)*1000 -> 0 | M13: ='月・区別，22週以後－早期新生児別周産期死亡数'!M13/('月・区別，22週以後－早期新生児別周産期死亡数'!M25+'月・区別，22週以後－早期新生児別周産期死亡率'!AB13)*1000 -> 0 | N13: ='月・区別，22週以後－早期新生児別周産期死亡数'!N13/('月・区別，22週以後－早期新生児別周産期死亡数'!N25+'月・区別，22週以後－早期新生児別周産期死亡率'!AC13)*1000 -> 0 | Q13: =[1]出生数!G12 -> 642 | R13: =[1]出生数!U12 -> 70 | S13: =[1]出生数!V12 -> 44 | T13: =[1]出生数!W12 -> 44 | U13: =[1]出生数!X12 -> 62 | V13: =[1]出生数!Y12 -> 47 | W13: =[1]出生数!Z12 -> 53 | X13: =[1]出生数!AA12 -> 57 | Y13: =[1]出生数!AB12 -> 64 | Z13: =[1]出生数!AC12 -> 46 | AA13: =[1]出生数!AD12 -> 61 | AB13: =[1]出生数!AE12 -> 57 | AC13: =[1]出生数!AF12 -> 46 | AD13: =[1]出生数!AG12 -> 61
A14: 西 | B14: ='月・区別，22週以後－早期新生児別周産期死亡数'!B14/('月・区別，22週以後－早期新生児別周産期死亡数'!B26+'月・区別，22週以後－早期新生児別周産期死亡率'!Q14)*1000 -> 0 | C14: ='月・区別，22週以後－早期新生児別周産期死亡数'!C14/('月・区別，22週以後－早期新生児別周産期死亡数'!C26+'月・区別，22週以後－早期新生児別周産期死亡率'!R14)*1000 -> 0 | D14: ='月・区別，22週以後－早期新生児別周産期死亡数'!D14/('月・区別，22週以後－早期新生児別周産期死亡数'!D26+'月・区別，22週以後－早期新生児別周産期死亡率'!S14)*1000 -> 0 | E14: ='月・区別，22週以後－早期新生児別周産期死亡数'!E14/('月・区別，22週以後－早期新生児別周産期死亡数'!E26+'月・区別，22週以後－早期新生児別周産期死亡率'!T14)*1000 -> 0 | F14: ='月・区別，22週以後－早期新生児別周産期死亡数'!F14/('月・区別，22週以後－早期新生児別周産期死亡数'!F26+'月・区別，22週以後－早期新生児別周産期死亡率'!U14)*1000 -> 0 | G14: ='月・区別，22週以後－早期新生児別周産期死亡数'!G14/('月・区別，22週以後－早期新生児別周産期死亡数'!G26+'月・区別，22週以後－早期新生児別周産期死亡率'!V14)*1000 -> 0 | H14: ='月・区別，22週以後－早期新生児別周産期死亡数'!H14/('月・区別，22週以後－早期新生児別周産期死亡数'!H26+'月・区別，22週以後－早期新生児別周産期死亡率'!W14)*1000 -> 0 | I14: ='月・区別，22週以後－早期新生児別周産期死亡数'!I14/('月・区別，22週以後－早期新生児別周産期死亡数'!I26+'月・区別，22週以後－早期新生児別周産期死亡率'!X14)*1000 -> 0 | J14: ='月・区別，22週以後－早期新生児別周産期死亡数'!J14/('月・区別，22週以後－早期新生児別周産期死亡数'!J26+'月・区別，22週以後－早期新生児別周産期死亡率'!Y14)*1000 -> 0 | K14: ='月・区別，22週以後－早期新生児別周産期死亡数'!K14/('月・区別，22週以後－早期新生児別周産期死亡数'!K26+'月・区別，22週以後－早期新生児別周産期死亡率'!Z14)*1000 -> 0 | L14: ='月・区別，22週以後－早期新生児別周産期死亡数'!L14/('月・区別，22週以後－早期新生児別周産期死亡数'!L26+'月・区別，22週以後－早期新生児別周産期死亡率'!AA14)*1000 -> 0 | M14: ='月・区別，22週以後－早期新生児別周産期死亡数'!M14/('月・区別，22週以後－早期新生児別周産期死亡数'!M26+'月・区別，22週以後－早期新生児別周産期死亡率'!AB14)*1000 -> 0 | N14: ='月・区別，22週以後－早期新生児別周産期死亡数'!N14/('月・区別，22週以後－早期新生児別周産期死亡数'!N26+'月・区別，22週以後－早期新生児別周産期死亡率'!AC14)*1000 -> 0 | Q14: =[1]出生数!G13 -> 1530 | R14: =[1]出生数!U13 -> 145 | S14: =[1]出生数!V13 -> 133 | T14: =[1]出生数!W13 -> 113 | U14: =[1]出生数!X13 -> 120 | V14: =[1]出生数!Y13 -> 123 | W14: =[1]出生数!Z13 -> 143 | X14: =[1]出生数!AA13 -> 134 | Y14: =[1]出生数!AB13 -> 145 | Z14: =[1]出生数!AC13 -> 133 | AA14: =[1]出生数!AD13 -> 142 | AB14: =[1]出生数!AE13 -> 119 | AC14: =[1]出生数!AF13 -> 112 | AD14: =[1]出生数!AG13 -> 113
A15: 手稲 | B15: ='月・区別，22週以後－早期新生児別周産期死亡数'!B15/('月・区別，22週以後－早期新生児別周産期死亡数'!B27+'月・区別，22週以後－早期新生児別周産期死亡率'!Q15)*1000 -> 0 | C15: ='月・区別，22週以後－早期新生児別周産期死亡数'!C15/('月・区別，22週以後－早期新生児別周産期死亡数'!C27+'月・区別，22週以後－早期新生児別周産期死亡率'!R15)*1000 -> 0 | D15: ='月・区別，22週以後－早期新生児別周産期死亡数'!D15/('月・区別，22週以後－早期新生児別周産期死亡数'!D27+'月・区別，22週以後－早期新生児別周産期死亡率'!S15)*1000 -> 0 | E15: ='月・区別，22週以後－早期新生児別周産期死亡数'!E15/('月・区別，22週以後－早期新生児別周産期死亡数'!E27+'月・区別，22週以後－早期新生児別周産期死亡率'!T15)*1000 -> 0 | F15: ='月・区別，22週以後－早期新生児別周産期死亡数'!F15/('月・区別，22週以後－早期新生児別周産期死亡数'!F27+'月・区別，22週以後－早期新生児別周産期死亡率'!U15)*1000 -> 0 | G15: ='月・区別，22週以後－早期新生児別周産期死亡数'!G15/('月・区別，22週以後－早期新生児別周産期死亡数'!G27+'月・区別，22週以後－早期新生児別周産期死亡率'!V15)*1000 -> 0 | H15: ='月・区別，22週以後－早期新生児別周産期死亡数'!H15/('月・区別，22週以後－早期新生児別周産期死亡数'!H27+'月・区別，22週以後－早期新生児別周産期死亡率'!W15)*1000 -> 0 | I15: ='月・区別，22週以後－早期新生児別周産期死亡数'!I15/('月・区別，22週以後－早期新生児別周産期死亡数'!I27+'月・区別，22週以後－早期新生児別周産期死亡率'!X15)*1000 -> 0 | J15: ='月・区別，22週以後－早期新生児別周産期死亡数'!J15/('月・区別，22週以後－早期新生児別周産期死亡数'!J27+'月・区別，22週以後－早期新生児別周産期死亡率'!Y15)*1000 -> 0 | K15: ='月・区別，22週以後－早期新生児別周産期死亡数'!K15/('月・区別，22週以後－早期新生児別周産期死亡数'!K27+'月・区別，22週以後－早期新生児別周産期死亡率'!Z15)*1000 -> 0 | L15: ='月・区別，22週以後－早期新生児別周産期死亡数'!L15/('月・区別，22週以後－早期新生児別周産期死亡数'!L27+'月・区別，22週以後－早期新生児別周産期死亡率'!AA15)*1000 -> 0 | M15: ='月・区別，22週以後－早期新生児別周産期死亡数'!M15/('月・区別，22週以後－早期新生児別周産期死亡数'!M27+'月・区別，22週以後－早期新生児別周産期死亡率'!AB15)*1000 -> 0 | N15: ='月・区別，22週以後－早期新生児別周産期死亡数'!N15/('月・区別，22週以後－早期新生児別周産期死亡数'!N27+'月・区別，22週以後－早期新生児別周産期死亡率'!AC15)*1000 -> 0 | Q15: =[1]出生数!G14 -> 809 | R15: =[1]出生数!U14 -> 75 | S15: =[1]出生数!V14 -> 67 | T15: =[1]出生数!W14 -> 71 | U15: =[1]出生数!X14 -> 77 | V15: =[1]出生数!Y14 -> 75 | W15: =[1]出生数!Z14 -> 73 | X15: =[1]出生数!AA14 -> 48 | Y15: =[1]出生数!AB14 -> 64 | Z15: =[1]出生数!AC14 -> 77 | AA15: =[1]出生数!AD14 -> 56 | AB15: =[1]出生数!AE14 -> 72 | AC15: =[1]出生数!AF14 -> 77 | AD15: =[1]出生数!AG14 -> 52
B16: 妊娠満22週以後の死産率(出産千対）
A17: 総数 | B17: ='月・区別，22週以後－早期新生児別周産期死亡数'!B17/('月・区別，22週以後－早期新生児別周産期死亡数'!B17+'月・区別，22週以後－早期新生児別周産期死亡率'!Q5)*1000 -> 0 | C17: ='月・区別，22週以後－早期新生児別周産期死亡数'!C17/('月・区別，22週以後－早期新生児別周産期死亡数'!C17+'月・区別，22週以後－早期新生児別周産期死亡率'!R5)*1000 -> 0 | D17: ='月・区別，22週以後－早期新生児別周産期死亡数'!D17/('月・区別，22週以後－早期新生児別周産期死亡数'!D17+'月・区別，22週以後－早期新生児別周産期死亡率'!S5)*1000 -> 0 | E17: ='月・区別，22週以後－早期新生児別周産期死亡数'!E17/('月・区別，22週以後－早期新生児別周産期死亡数'!E17+'月・区別，22週以後－早期新生児別周産期死亡率'!T5)*1000 -> 0 | F17: ='月・区別，22週以後－早期新生児別周産期死亡数'!F17/('月・区別，22週以後－早期新生児別周産期死亡数'!F17+'月・区別，22週以後－早期新生児別周産期死亡率'!U5)*1000 -> 0 | G17: ='月・区別，22週以後－早期新生児別周産期死亡数'!G17/('月・区別，22週以後－早期新生児別周産期死亡数'!G17+'月・区別，22週以後－早期新生児別周産期死亡率'!V5)*1000 -> 0 | H17: ='月・区別，22週以後－早期新生児別周産期死亡数'!H17/('月・区別，22週以後－早期新生児別周産期死亡数'!H17+'月・区別，22週以後－早期新生児別周産期死亡率'!W5)*1000 -> 0 | I17: ='月・区別，22週以後－早期新生児別周産期死亡数'!I17/('月・区別，22週以後－早期新生児別周産期死亡数'!I17+'月・区別，22週以後－早期新生児別周産期死亡率'!X5)*1000 -> 0 | J17: ='月・区別，22週以後－早期新生児別周産期死亡数'!J17/('月・区別，22週以後－早期新生児別周産期死亡数'!J17+'月・区別，22週以後－早期新生児別周産期死亡率'!Y5)*1000 -> 0 | K17: ='月・区別，22週以後－早期新生児別周産期死亡数'!K17/('月・区別，22週以後－早期新生児別周産期死亡数'!K17+'月・区別，22週以後－早期新生児別周産期死亡率'!Z5)*1000 -> 0 | L17: ='月・区別，22週以後－早期新生児別周産期死亡数'!L17/('月・区別，22週以後－早期新生児別周産期死亡数'!L17+'月・区別，22週以後－早期新生児別周産期死亡率'!AA5)*1000 -> 0 | M17: ='月・区別，22週以後－早期新生児別周産期死亡数'!M17/('月・区別，22週以後－早期新生児別周産期死亡数'!M17+'月・区別，22週以後－早期新生児別周産期死亡率'!AB5)*1000 -> 0 | N17: ='月・区別，22週以後－早期新生児別周産期死亡数'!N17/('月・区別，22週以後－早期新生児別周産期死亡数'!N17+'月・区別，22週以後－早期新生児別周産期死亡率'!AC5)*1000 -> 0
A18: 中央 | B18: ='月・区別，22週以後－早期新生児別周産期死亡数'!B18/('月・区別，22週以後－早期新生児別周産期死亡数'!B18+'月・区別，22週以後－早期新生児別周産期死亡率'!Q6)*1000 -> 0 | C18: ='月・区別，22週以後－早期新生児別周産期死亡数'!C18/('月・区別，22週以後－早期新生児別周産期死亡数'!C18+'月・区別，22週以後－早期新生児別周産期死亡率'!R6)*1000 -> 0 | D18: ='月・区別，22週以後－早期新生児別周産期死亡数'!D18/('月・区別，22週以後－早期新生児別周産期死亡数'!D18+'月・区別，22週以後－早期新生児別周産期死亡率'!S6)*1000 -> 0 | E18: ='月・区別，22週以後－早期新生児別周産期死亡数'!E18/('月・区別，22週以後－早期新生児別周産期死亡数'!E18+'月・区別，22週以後－早期新生児別周産期死亡率'!T6)*1000 -> 0 | F18: ='月・区別，22週以後－早期新生児別周産期死亡数'!F18/('月・区別，22週以後－早期新生児別周産期死亡数'!F18+'月・区別，22週以後－早期新生児別周産期死亡率'!U6)*1000 -> 0 | G18: ='月・区別，22週以後－早期新生児別周産期死亡数'!G18/('月・区別，22週以後－早期新生児別周産期死亡数'!G18+'月・区別，22週以後－早期新生児別周産期死亡率'!V6)*1000 -> 0 | H18: ='月・区別，22週以後－早期新生児別周産期死亡数'!H18/('月・区別，22週以後－早期新生児別周産期死亡数'!H18+'月・区別，22週以後－早期新生児別周産期死亡率'!W6)*1000 -> 0 | I18: ='月・区別，22週以後－早期新生児別周産期死亡数'!I18/('月・区別，22週以後－早期新生児別周産期死亡数'!I18+'月・区別，22週以後－早期新生児別周産期死亡率'!X6)*1000 -> 0 | J18: ='月・区別，22週以後－早期新生児別周産期死亡数'!J18/('月・区別，22週以後－早期新生児別周産期死亡数'!J18+'月・区別，22週以後－早期新生児別周産期死亡率'!Y6)*1000 -> 0 | K18: ='月・区別，22週以後－早期新生児別周産期死亡数'!K18/('月・区別，22週以後－早期新生児別周産期死亡数'!K18+'月・区別，22週以後－早期新生児別周産期死亡率'!Z6)*1000 -> 0 | L18: ='月・区別，22週以後－早期新生児別周産期死亡数'!L18/('月・区別，22週以後－早期新生児別周産期死亡数'!L18+'月・区別，22週以後－早期新生児別周産期死亡率'!AA6)*1000 -> 0 | M18: ='月・区別，22週以後－早期新生児別周産期死亡数'!M18/('月・区別，22週以後－早期新生児別周産期死亡数'!M18+'月・区別，22週以後－早期新生児別周産期死亡率'!AB6)*1000 -> 0 | N18: ='月・区別，22週以後－早期新生児別周産期死亡数'!N18/('月・区別，22週以後－早期新生児別周産期死亡数'!N18+'月・区別，22週以後－早期新生児別周産期死亡率'!AC6)*1000 -> 0
A19: 北 | B19: ='月・区別，22週以後－早期新生児別周産期死亡数'!B19/('月・区別，22週以後－早期新生児別周産期死亡数'!B19+'月・区別，22週以後－早期新生児別周産期死亡率'!Q7)*1000 -> 0 | C19: ='月・区別，22週以後－早期新生児別周産期死亡数'!C19/('月・区別，22週以後－早期新生児別周産期死亡数'!C19+'月・区別，22週以後－早期新生児別周産期死亡率'!R7)*1000 -> 0 | D19: ='月・区別，22週以後－早期新生児別周産期死亡数'!D19/('月・区別，22週以後－早期新生児別周産期死亡数'!D19+'月・区別，22週以後－早期新生児別周産期死亡率'!S7)*1000 -> 0 | E19: ='月・区別，22週以後－早期新生児別周産期死亡数'!E19/('月・区別，22週以後－早期新生児別周産期死亡数'!E19+'月・区別，22週以後－早期新生児別周産期死亡率'!T7)*1000 -> 0 | F19: ='月・区別，22週以後－早期新生児別周産期死亡数'!F19/('月・区別，22週以後－早期新生児別周産期死亡数'!F19+'月・区別，22週以後－早期新生児別周産期死亡率'!U7)*1000 -> 0 | G19: ='月・区別，22週以後－早期新生児別周産期死亡数'!G19/('月・区別，22週以後－早期新生児別周産期死亡数'!G19+'月・区別，22週以後－早期新生児別周産期死亡率'!V7)*1000 -> 0 | H19: ='月・区別，22週以後－早期新生児別周産期死亡数'!H19/('月・区別，22週以後－早期新生児別周産期死亡数'!H19+'月・区別，22週以後－早期新生児別周産期死亡率'!W7)*1000 -> 0 | I19: ='月・区別，22週以後－早期新生児別周産期死亡数'!I19/('月・区別，22週以後－早期新生児別周産期死亡数'!I19+'月・区別，22週以後－早期新生児別周産期死亡率'!X7)*1000 -> 0 | J19: ='月・区別，22週以後－早期新生児別周産期死亡数'!J19/('月・区別，22週以後－早期新生児別周産期死亡数'!J19+'月・区別，22週以後－早期新生児別周産期死亡率'!Y7)*1000 -> 0 | K19: ='月・区別，22週以後－早期新生児別周産期死亡数'!K19/('月・区別，22週以後－早期新生児別周産期死亡数'!K19+'月・区別，22週以後－早期新生児別周産期死亡率'!Z7)*1000 -> 0 | L19: ='月・区別，22週以後－早期新生児別周産期死亡数'!L19/('月・区別，22週以後－早期新生児別周産期死亡数'!L19+'月・区別，22週以後－早期新生児別周産期死亡率'!AA7)*1000 -> 0 | M19: ='月・区別，22週以後－早期新生児別周産期死亡数'!M19/('月・区別，22週以後－早期新生児別周産期死亡数'!M19+'月・区別，22週以後－早期新生児別周産期死亡率'!AB7)*1000 -> 0 | N19: ='月・区別，22週以後－早期新生児別周産期死亡数'!N19/('月・区別，22週以後－早期新生児別周産期死亡数'!N19+'月・区別，22週以後－早期新生児別周産期死亡率'!AC7)*1000 -> 0
A20: 東 | B20: ='月・区別，22週以後－早期新生児別周産期死亡数'!B20/('月・区別，22週以後－早期新生児別周産期死亡数'!B20+'月・区別，22週以後－早期新生児別周産期死亡率'!Q8)*1000 -> 0 | C20: ='月・区別，22週以後－早期新生児別周産期死亡数'!C20/('月・区別，22週以後－早期新生児別周産期死亡数'!C20+'月・区別，22週以後－早期新生児別周産期死亡率'!R8)*1000 -> 0 | D20: ='月・区別，22週以後－早期新生児別周産期死亡数'!D20/('月・区別，22週以後－早期新生児別周産期死亡数'!D20+'月・区別，22週以後－早期新生児別周産期死亡率'!S8)*1000 -> 0 | E20: ='月・区別，22週以後－早期新生児別周産期死亡数'!E20/('月・区別，22週以後－早期新生児別周産期死亡数'!E20+'月・区別，22週以後－早期新生児別周産期死亡率'!T8)*1000 -> 0 | F20: ='月・区別，22週以後－早期新生児別周産期死亡数'!F20/('月・区別，22週以後－早期新生児別周産期死亡数'!F20+'月・区別，22週以後－早期新生児別周産期死亡率'!U8)*1000 -> 0 | G20: ='月・区別，22週以後－早期新生児別周産期死亡数'!G20/('月・区別，22週以後－早期新生児別周産期死亡数'!G20+'月・区別，22週以後－早期新生児別周産期死亡率'!V8)*1000 -> 0 | H20: ='月・区別，22週以後－早期新生児別周産期死亡数'!H20/('月・区別，22週以後－早期新生児別周産期死亡数'!H20+'月・区別，22週以後－早期新生児別周産期死亡率'!W8)*1000 -> 0 | I20: ='月・区別，22週以後－早期新生児別周産期死亡数'!I20/('月・区別，22週以後－早期新生児別周産期死亡数'!I20+'月・区別，22週以後－早期新生児別周産期死亡率'!X8)*1000 -> 0 | J20: ='月・区別，22週以後－早期新生児別周産期死亡数'!J20/('月・区別，22週以後－早期新生児別周産期死亡数'!J20+'月・区別，22週以後－早期新生児別周産期死亡率'!Y8)*1000 -> 0 | K20: ='月・区別，22週以後－早期新生児別周産期死亡数'!K20/('月・区別，22週以後－早期新生児別周産期死亡数'!K20+'月・区別，22週以後－早期新生児別周産期死亡率'!Z8)*1000 -> 0 | L20: ='月・区別，22週以後－早期新生児別周産期死亡数'!L20/('月・区別，22週以後－早期新生児別周産期死亡数'!L20+'月・区別，22週以後－早期新生児別周産期死亡率'!AA8)*1000 -> 0 | M20: ='月・区別，22週以後－早期新生児別周産期死亡数'!M20/('月・区別，22週以後－早期新生児別周産期死亡数'!M20+'月・区別，22週以後－早期新生児別周産期死亡率'!AB8)*1000 -> 0 | N20: ='月・区別，22週以後－早期新生児別周産期死亡数'!N20/('月・区別，22週以後－早期新生児別周産期死亡数'!N20+'月・区別，22週以後－早期新生児別周産期死亡率'!AC8)*1000 -> 0
A21: 白石 | B21: ='月・区別，22週以後－早期新生児別周産期死亡数'!B21/('月・区別，22週以後－早期新生児別周産期死亡数'!B21+'月・区別，22週以後－早期新生児別周産期死亡率'!Q9)*1000 -> 0 | C21: ='月・区別，22週以後－早期新生児別周産期死亡数'!C21/('月・区別，22週以後－早期新生児別周産期死亡数'!C21+'月・区別，22週以後－早期新生児別周産期死亡率'!R9)*1000 -> 0 | D21: ='月・区別，22週以後－早期新生児別周産期死亡数'!D21/('月・区別，22週以後－早期新生児別周産期死亡数'!D21+'月・区別，22週以後－早期新生児別周産期死亡率'!S9)*1000 -> 0 | E21: ='月・区別，22週以後－早期新生児別周産期死亡数'!E21/('月・区別，22週以後－早期新生児別周産期死亡数'!E21+'月・区別，22週以後－早期新生児別周産期死亡率'!T9)*1000 -> 0 | F21: ='月・区別，22週以後－早期新生児別周産期死亡数'!F21/('月・区別，22週以後－早期新生児別周産期死亡数'!F21+'月・区別，22週以後－早期新生児別周産期死亡率'!U9)*1000 -> 0 | G21: ='月・区別，22週以後－早期新生児別周産期死亡数'!G21/('月・区別，22週以後－早期新生児別周産期死亡数'!G21+'月・区別，22週以後－早期新生児別周産期死亡率'!V9)*1000 -> 0 | H21: ='月・区別，22週以後－早期新生児別周産期死亡数'!H21/('月・区別，22週以後－早期新生児別周産期死亡数'!H21+'月・区別，22週以後－早期新生児別周産期死亡率'!W9)*1000 -> 0 | I21: ='月・区別，22週以後－早期新生児別周産期死亡数'!I21/('月・区別，22週以後－早期新生児別周産期死亡数'!I21+'月・区別，22週以後－早期新生児別周産期死亡率'!X9)*1000 -> 0 | J21: ='月・区別，22週以後－早期新生児別周産期死亡数'!J21/('月・区別，22週以後－早期新生児別周産期死亡数'!J21+'月・区別，22週以後－早期新生児別周産期死亡率'!Y9)*1000 -> 0 | K21: ='月・区別，22週以後－早期新生児別周産期死亡数'!K21/('月・区別，22週以後－早期新生児別周産期死亡数'!K21+'月・区別，22週以後－早期新生児別周産期死亡率'!Z9)*1000 -> 0 | L21: ='月・区別，22週以後－早期新生児別周産期死亡数'!L21/('月・区別，22週以後－早期新生児別周産期死亡数'!L21+'月・区別，22週以後－早期新生児別周産期死亡率'!AA9)*1000 -> 0 | M21: ='月・区別，22週以後－早期新生児別周産期死亡数'!M21/('月・区別，22週以後－早期新生児別周産期死亡数'!M21+'月・区別，22週以後－早期新生児別周産期死亡率'!AB9)*1000 -> 0 | N21: ='月・区別，22週以後－早期新生児別周産期死亡数'!N21/('月・区別，22週以後－早期新生児別周産期死亡数'!N21+'月・区別，22週以後－早期新生児別周産期死亡率'!AC9)*1000 -> 0
A22: 厚別 | B22: ='月・区別，22週以後－早期新生児別周産期死亡数'!B22/('月・区別，22週以後－早期新生児別周産期死亡数'!B22+'月・区別，22週以後－早期新生児別周産期死亡率'!Q10)*1000 -> 0 | C22: ='月・区別，22週以後－早期新生児別周産期死亡数'!C22/('月・区別，22週以後－早期新生児別周産期死亡数'!C22+'月・区別，22週以後－早期新生児別周産期死亡率'!R10)*1000 -> 0 | D22: ='月・区別，22週以後－早期新生児別周産期死亡数'!D22/('月・区別，22週以後－早期新生児別周産期死亡数'!D22+'月・区別，22週以後－早期新生児別周産期死亡率'!S10)*1000 -> 0 | E22: ='月・区別，22週以後－早期新生児別周産期死亡数'!E22/('月・区別，22週以後－早期新生児別周産期死亡数'!E22+'月・区別，22週以後－早期新生児別周産期死亡率'!T10)*1000 -> 0 | F22: ='月・区別，22週以後－早期新生児別周産期死亡数'!F22/('月・区別，22週以後－早期新生児別周産期死亡数'!F22+'月・区別，22週以後－早期新生児別周産期死亡率'!U10)*1000 -> 0 | G22: ='月・区別，22週以後－早期新生児別周産期死亡数'!G22/('月・区別，22週以後－早期新生児別周産期死亡数'!G22+'月・区別，22週以後－早期新生児別周産期死亡率'!V10)*1000 -> 0 | H22: ='月・区別，22週以後－早期新生児別周産期死亡数'!H22/('月・区別，22週以後－早期新生児別周産期死亡数'!H22+'月・区別，22週以後－早期新生児別周産期死亡率'!W10)*1000 -> 0 | I22: ='月・区別，22週以後－早期新生児別周産期死亡数'!I22/('月・区別，22週以後－早期新生児別周産期死亡数'!I22+'月・区別，22週以後－早期新生児別周産期死亡率'!X10)*1000 -> 0 | J22: ='月・区別，22週以後－早期新生児別周産期死亡数'!J22/('月・区別，22週以後－早期新生児別周産期死亡数'!J22+'月・区別，22週以後－早期新生児別周産期死亡率'!Y10)*1000 -> 0 | K22: ='月・区別，22週以後－早期新生児別周産期死亡数'!K22/('月・区別，22週以後－早期新生児別周産期死亡数'!K22+'月・区別，22週以後－早期新生児別周産期死亡率'!Z10)*1000 -> 0 | L22: ='月・区別，22週以後－早期新生児別周産期死亡数'!L22/('月・区別，22週以後－早期新生児別周産期死亡数'!L22+'月・区別，22週以後－早期新生児別周産期死亡率'!AA10)*1000 -> 0 | M22: ='月・区別，22週以後－早期新生児別周産期死亡数'!M22/('月・区別，22週以後－早期新生児別周産期死亡数'!M22+'月・区別，22週以後－早期新生児別周産期死亡率'!AB10)*1000 -> 0 | N22: ='月・区別，22週以後－早期新生児別周産期死亡数'!N22/('月・区別，22週以後－早期新生児別周産期死亡数'!N22+'月・区別，22週以後－早期新生児別周産期死亡率'!AC10)*1000 -> 0
A23: 豊平 | B23: ='月・区別，22週以後－早期新生児別周産期死亡数'!B23/('月・区別，22週以後－早期新生児別周産期死亡数'!B23+'月・区別，22週以後－早期新生児別周産期死亡率'!Q11)*1000 -> 0 | C23: ='月・区別，22週以後－早期新生児別周産期死亡数'!C23/('月・区別，22週以後－早期新生児別周産期死亡数'!C23+'月・区別，22週以後－早期新生児別周産期死亡率'!R11)*1000 -> 0 | D23: ='月・区別，22週以後－早期新生児別周産期死亡数'!D23/('月・区別，22週以後－早期新生児別周産期死亡数'!D23+'月・区別，22週以後－早期新生児別周産期死亡率'!S11)*1000 -> 0 | E23: ='月・区別，22週以後－早期新生児別周産期死亡数'!E23/('月・区別，22週以後－早期新生児別周産期死亡数'!E23+'月・区別，22週以後－早期新生児別周産期死亡率'!T11)*1000 -> 0 | F23: ='月・区別，22週以後－早期新生児別周産期死亡数'!F23/('月・区別，22週以後－早期新生児別周産期死亡数'!F23+'月・区別，22週以後－早期新生児別周産期死亡率'!U11)*1000 -> 0 | G23: ='月・区別，22週以後－早期新生児別周産期死亡数'!G23/('月・区別，22週以後－早期新生児別周産期死亡数'!G23+'月・区別，22週以後－早期新生児別周産期死亡率'!V11)*1000 -> 0 | H23: ='月・区別，22週以後－早期新生児別周産期死亡数'!H23/('月・区別，22週以後－早期新生児別周産期死亡数'!H23+'月・区別，22週以後－早期新生児別周産期死亡率'!W11)*1000 -> 0 | I23: ='月・区別，22週以後－早期新生児別周産期死亡数'!I23/('月・区別，22週以後－早期新生児別周産期死亡数'!I23+'月・区別，22週以後－早期新生児別周産期死亡率'!X11)*1000 -> 0 | J23: ='月・区別，22週以後－早期新生児別周産期死亡数'!J23/('月・区別，22週以後－早期新生児別周産期死亡数'!J23+'月・区別，22週以後－早期新生児別周産期死亡率'!Y11)*1000 -> 0 | K23: ='月・区別，22週以後－早期新生児別周産期死亡数'!K23/('月・区別，22週以後－早期新生児別周産期死亡数'!K23+'月・区別，22週以後－早期新生児別周産期死亡率'!Z11)*1000 -> 0 | L23: ='月・区別，22週以後－早期新生児別周産期死亡数'!L23/('月・区別，22週以後－早期新生児別周産期死亡数'!L23+'月・区別，22週以後－早期新生児別周産期死亡率'!AA11)*1000 -> 0 | M23: ='月・区別，22週以後－早期新生児別周産期死亡数'!M23/('月・区別，22週以後－早期新生児別周産期死亡数'!M23+'月・区別，22週以後－早期新生児別周産期死亡率'!AB11)*1000 -> 0 | N23: ='月・区別，22週以後－早期新生児別周産期死亡数'!N23/('月・区別，22週以後－早期新生児別周産期死亡数'!N23+'月・区別，22週以後－早期新生児別周産期死亡率'!AC11)*1000 -> 0
A24: 清田 | B24: ='月・区別，22週以後－早期新生児別周産期死亡数'!B24/('月・区別，22週以後－早期新生児別周産期死亡数'!B24+'月・区別，22週以後－早期新生児別周産期死亡率'!Q12)*1000 -> 0 | C24: ='月・区別，22週以後－早期新生児別周産期死亡数'!C24/('月・区別，22週以後－早期新生児別周産期死亡数'!C24+'月・区別，22週以後－早期新生児別周産期死亡率'!R12)*1000 -> 0 | D24: ='月・区別，22週以後－早期新生児別周産期死亡数'!D24/('月・区別，22週以後－早期新生児別周産期死亡数'!D24+'月・区別，22週以後－早期新生児別周産期死亡率'!S12)*1000 -> 0 | E24: ='月・区別，22週以後－早期新生児別周産期死亡数'!E24/('月・区別，22週以後－早期新生児別周産期死亡数'!E24+'月・区別，22週以後－早期新生児別周産期死亡率'!T12)*1000 -> 0 | F24: ='月・区別，22週以後－早期新生児別周産期死亡数'!F24/('月・区別，22週以後－早期新生児別周産期死亡数'!F24+'月・区別，22週以後－早期新生児別周産期死亡率'!U12)*1000 -> 0 | G24: ='月・区別，22週以後－早期新生児別周産期死亡数'!G24/('月・区別，22週以後－早期新生児別周産期死亡数'!G24+'月・区別，22週以後－早期新生児別周産期死亡率'!V12)*1000 -> 0 | H24: ='月・区別，22週以後－早期新生児別周産期死亡数'!H24/('月・区別，22週以後－早期新生児別周産期死亡数'!H24+'月・区別，22週以後－早期新生児別周産期死亡率'!W12)*1000 -> 0 | I24: ='月・区別，22週以後－早期新生児別周産期死亡数'!I24/('月・区別，22週以後－早期新生児別周産期死亡数'!I24+'月・区別，22週以後－早期新生児別周産期死亡率'!X12)*1000 -> 0 | J24: ='月・区別，22週以後－早期新生児別周産期死亡数'!J24/('月・区別，22週以後－早期新生児別周産期死亡数'!J24+'月・区別，22週以後－早期新生児別周産期死亡率'!Y12)*1000 -> 0 | K24: ='月・区別，22週以後－早期新生児別周産期死亡数'!K24/('月・区別，22週以後－早期新生児別周産期死亡数'!K24+'月・区別，22週以後－早期新生児別周産期死亡率'!Z12)*1000 -> 0 | L24: ='月・区別，22週以後－早期新生児別周産期死亡数'!L24/('月・区別，22週以後－早期新生児別周産期死亡数'!L24+'月・区別，22週以後－早期新生児別周産期死亡率'!AA12)*1000 -> 0 | M24: ='月・区別，22週以後－早期新生児別周産期死亡数'!M24/('月・区別，22週以後－早期新生児別周産期死亡数'!M24+'月・区別，22週以後－早期新生児別周産期死亡率'!AB12)*1000 -> 0 | N24: ='月・区別，22週以後－早期新生児別周産期死亡数'!N24/('月・区別，22週以後－早期新生児別周産期死亡数'!N24+'月・区別，22週以後－早期新生児別周産期死亡率'!AC12)*1000 -> 0
A25: 南 | B25: ='月・区別，22週以後－早期新生児別周産期死亡数'!B25/('月・区別，22週以後－早期新生児別周産期死亡数'!B25+'月・区別，22週以後－早期新生児別周産期死亡率'!Q13)*1000 -> 0 | C25: ='月・区別，22週以後－早期新生児別周産期死亡数'!C25/('月・区別，22週以後－早期新生児別周産期死亡数'!C25+'月・区別，22週以後－早期新生児別周産期死亡率'!R13)*1000 -> 0 | D25: ='月・区別，22週以後－早期新生児別周産期死亡数'!D25/('月・区別，22週以後－早期新生児別周産期死亡数'!D25+'月・区別，22週以後－早期新生児別周産期死亡率'!S13)*1000 -> 0 | E25: ='月・区別，22週以後－早期新生児別周産期死亡数'!E25/('月・区別，22週以後－早期新生児別周産期死亡数'!E25+'月・区別，22週以後－早期新生児別周産期死亡率'!T13)*1000 -> 0 | F25: ='月・区別，22週以後－早期新生児別周産期死亡数'!F25/('月・区別，22週以後－早期新生児別周産期死亡数'!F25+'月・区別，22週以後－早期新生児別周産期死亡率'!U13)*1000 -> 0 | G25: ='月・区別，22週以後－早期新生児別周産期死亡数'!G25/('月・区別，22週以後－早期新生児別周産期死亡数'!G25+'月・区別，22週以後－早期新生児別周産期死亡率'!V13)*1000 -> 0 | H25: ='月・区別，22週以後－早期新生児別周産期死亡数'!H25/('月・区別，22週以後－早期新生児別周産期死亡数'!H25+'月・区別，22週以後－早期新生児別周産期死亡率'!W13)*1000 -> 0 | I25: ='月・区別，22週以後－早期新生児別周産期死亡数'!I25/('月・区別，22週以後－早期新生児別周産期死亡数'!I25+'月・区別，22週以後－早期新生児別周産期死亡率'!X13)*1000 -> 0 | J25: ='月・区別，22週以後－早期新生児別周産期死亡数'!J25/('月・区別，22週以後－早期新生児別周産期死亡数'!J25+'月・区別，22週以後－早期新生児別周産期死亡率'!Y13)*1000 -> 0 | K25: ='月・区別，22週以後－早期新生児別周産期死亡数'!K25/('月・区別，22週以後－早期新生児別周産期死亡数'!K25+'月・区別，22週以後－早期新生児別周産期死亡率'!Z13)*1000 -> 0 | L25: ='月・区別，22週以後－早期新生児別周産期死亡数'!L25/('月・区別，22週以後－早期新生児別周産期死亡数'!L25+'月・区別，22週以後－早期新生児別周産期死亡率'!AA13)*1000 -> 0 | M25: ='月・区別，22週以後－早期新生児別周産期死亡数'!M25/('月・区別，22週以後－早期新生児別周産期死亡数'!M25+'月・区別，22週以後－早期新生児別周産期死亡率'!AB13)*1000 -> 0 | N25: ='月・区別，22週以後－早期新生児別周産期死亡数'!N25/('月・区別，22週以後－早期新生児別周産期死亡数'!N25+'月・区別，22週以後－早期新生児別周産期死亡率'!AC13)*1000 -> 0
A26: 西 | B26: ='月・区別，22週以後－早期新生児別周産期死亡数'!B26/('月・区別，22週以後－早期新生児別周産期死亡数'!B26+'月・区別，22週以後－早期新生児別周産期死亡率'!Q14)*1000 -> 0 | C26: ='月・区別，22週以後－早期新生児別周産期死亡数'!C26/('月・区別，22週以後－早期新生児別周産期死亡数'!C26+'月・区別，22週以後－早期新生児別周産期死亡率'!R14)*1000 -> 0 | D26: ='月・区別，22週以後－早期新生児別周産期死亡数'!D26/('月・区別，22週以後－早期新生児別周産期死亡数'!D26+'月・区別，22週以後－早期新生児別周産期死亡率'!S14)*1000 -> 0 | E26: ='月・区別，22週以後－早期新生児別周産期死亡数'!E26/('月・区別，22週以後－早期新生児別周産期死亡数'!E26+'月・区別，22週以後－早期新生児別周産期死亡率'!T14)*1000 -> 0 | F26: ='月・区別，22週以後－早期新生児別周産期死亡数'!F26/('月・区別，22週以後－早期新生児別周産期死亡数'!F26+'月・区別，22週以後－早期新生児別周産期死亡率'!U14)*1000 -> 0 | G26: ='月・区別，22週以後－早期新生児別周産期死亡数'!G26/('月・区別，22週以後－早期新生児別周産期死亡数'!G26+'月・区別，22週以後－早期新生児別周産期死亡率'!V14)*1000 -> 0 | H26: ='月・区別，22週以後－早期新生児別周産期死亡数'!H26/('月・区別，22週以後－早期新生児別周産期死亡数'!H26+'月・区別，22週以後－早期新生児別周産期死亡率'!W14)*1000 -> 0 | I26: ='月・区別，22週以後－早期新生児別周産期死亡数'!I26/('月・区別，22週以後－早期新生児別周産期死亡数'!I26+'月・区別，22週以後－早期新生児別周産期死亡率'!X14)*1000 -> 0 | J26: ='月・区別，22週以後－早期新生児別周産期死亡数'!J26/('月・区別，22週以後－早期新生児別周産期死亡数'!J26+'月・区別，22週以後－早期新生児別周産期死亡率'!Y14)*1000 -> 0 | K26: ='月・区別，22週以後－早期新生児別周産期死亡数'!K26/('月・区別，22週以後－早期新生児別周産期死亡数'!K26+'月・区別，22週以後－早期新生児別周産期死亡率'!Z14)*1000 -> 0 | L26: ='月・区別，22週以後－早期新生児別周産期死亡数'!L26/('月・区別，22週以後－早期新生児別周産期死亡数'!L26+'月・区別，22週以後－早期新生児別周産期死亡率'!AA14)*1000 -> 0 | M26: ='月・区別，22週以後－早期新生児別周産期死亡数'!M26/('月・区別，22週以後－早期新生児別周産期死亡数'!M26+'月・区別，22週以後－早期新生児別周産期死亡率'!AB14)*1000 -> 0 | N26: ='月・区別，22週以後－早期新生児別周産期死亡数'!N26/('月・区別，22週以後－早期新生児別周産期死亡数'!N26+'月・区別，22週以後－早期新生児別周産期死亡率'!AC14)*1000 -> 0
A27: 手稲 | B27: ='月・区別，22週以後－早期新生児別周産期死亡数'!B27/('月・区別，22週以後－早期新生児別周産期死亡数'!B27+'月・区別，22週以後－早期新生児別周産期死亡率'!Q15)*1000 -> 0 | C27: ='月・区別，22週以後－早期新生児別周産期死亡数'!C27/('月・区別，22週以後－早期新生児別周産期死亡数'!C27+'月・区別，22週以後－早期新生児別周産期死亡率'!R15)*1000 -> 0 | D27: ='月・区別，22週以後－早期新生児別周産期死亡数'!D27/('月・区別，22週以後－早期新生児別周産期死亡数'!D27+'月・区別，22週以後－早期新生児別周産期死亡率'!S15)*1000 -> 0 | E27: ='月・区別，22週以後－早期新生児別周産期死亡数'!E27/('月・区別，22週以後－早期新生児別周産期死亡数'!E27+'月・区別，22週以後－早期新生児別周産期死亡率'!T15)*1000 -> 0 | F27: ='月・区別，22週以後－早期新生児別周産期死亡数'!F27/('月・区別，22週以後－早期新生児別周産期死亡数'!F27+'月・区別，22週以後－早期新生児別周産期死亡率'!U15)*1000 -> 0 | G27: ='月・区別，22週以後－早期新生児別周産期死亡数'!G27/('月・区別，22週以後－早期新生児別周産期死亡数'!G27+'月・区別，22週以後－早期新生児別周産期死亡率'!V15)*1000 -> 0 | H27: ='月・区別，22週以後－早期新生児別周産期死亡数'!H27/('月・区別，22週以後－早期新生児別周産期死亡数'!H27+'月・区別，22週以後－早期新生児別周産期死亡率'!W15)*1000 -> 0 | I27: ='月・区別，22週以後－早期新生児別周産期死亡数'!I27/('月・区別，22週以後－早期新生児別周産期死亡数'!I27+'月・区別，22週以後－早期新生児別周産期死亡率'!X15)*1000 -> 0 | J27: ='月・区別，22週以後－早期新生児別周産期死亡数'!J27/('月・区別，22週以後－早期新生児別周産期死亡数'!J27+'月・区別，22週以後－早期新生児別周産期死亡率'!Y15)*1000 -> 0 | K27: ='月・区別，22週以後－早期新生児別周産期死亡数'!K27/('月・区別，22週以後－早期新生児別周産期死亡数'!K27+'月・区別，22週以後－早期新生児別周産期死亡率'!Z15)*1000 -> 0 | L27: ='月・区別，22週以後－早期新生児別周産期死亡数'!L27/('月・区別，22週以後－早期新生児別周産期死亡数'!L27+'月・区別，22週以後－早期新生児別周産期死亡率'!AA15)*1000 -> 0 | M27: ='月・区別，22週以後－早期新生児別周産期死亡数'!M27/('月・区別，22週以後－早期新生児別周産期死亡数'!M27+'月・区別，22週以後－早期新生児別周産期死亡率'!AB15)*1000 -> 0 | N27: ='月・区別，22週以後－早期新生児別周産期死亡数'!N27/('月・区別，22週以後－早期新生児別周産期死亡数'!N27+'月・区別，22週以後－早期新生児別周産期死亡率'!AC15)*1000 -> 0
B28: 早期新生児死亡率(出生千対)
A29: 総数 | B29: ='月・区別，22週以後－早期新生児別周産期死亡数'!B29/'月・区別，22週以後－早期新生児別周産期死亡率'!Q5*1000 -> 0 | C29: ='月・区別，22週以後－早期新生児別周産期死亡数'!C29/'月・区別，22週以後－早期新生児別周産期死亡率'!R5*1000 -> 0 | D29: ='月・区別，22週以後－早期新生児別周産期死亡数'!D29/'月・区別，22週以後－早期新生児別周産期死亡率'!S5*1000 -> 0 | E29: ='月・区別，22週以後－早期新生児別周産期死亡数'!E29/'月・区別，22週以後－早期新生児別周産期死亡率'!T5*1000 -> 0 | F29: ='月・区別，22週以後－早期新生児別周産期死亡数'!F29/'月・区別，22週以後－早期新生児別周産期死亡率'!U5*1000 -> 0 | G29: ='月・区別，22週以後－早期新生児別周産期死亡数'!G29/'月・区別，22週以後－早期新生児別周産期死亡率'!V5*1000 -> 0 | H29: ='月・区別，22週以後－早期新生児別周産期死亡数'!H29/'月・区別，22週以後－早期新生児別周産期死亡率'!W5*1000 -> 0 | I29: ='月・区別，22週以後－早期新生児別周産期死亡数'!I29/'月・区別，22週以後－早期新生児別周産期死亡率'!X5*1000 -> 0 | J29: ='月・区別，22週以後－早期新生児別周産期死亡数'!J29/'月・区別，22週以後－早期新生児別周産期死亡率'!Y5*1000 -> 0 | K29: ='月・区別，22週以後－早期新生児別周産期死亡数'!K29/'月・区別，22週以後－早期新生児別周産期死亡率'!Z5*1000 -> 0 | L29: ='月・区別，22週以後－早期新生児別周産期死亡数'!L29/'月・区別，22週以後－早期新生児別周産期死亡率'!AA5*1000 -> 0 | M29: ='月・区別，22週以後－早期新生児別周産期死亡数'!M29/'月・区別，22週以後－早期新生児別周産期死亡率'!AB5*1000 -> 0 | N29: ='月・区別，22週以後－早期新生児別周産期死亡数'!N29/'月・区別，22週以後－早期新生児別周産期死亡率'!AC5*1000 -> 0
A30: 中央 | B30: ='月・区別，22週以後－早期新生児別周産期死亡数'!B30/'月・区別，22週以後－早期新生児別周産期死亡率'!Q6*1000 -> 0 | C30: ='月・区別，22週以後－早期新生児別周産期死亡数'!C30/'月・区別，22週以後－早期新生児別周産期死亡率'!R6*1000 -> 0 | D30: ='月・区別，22週以後－早期新生児別周産期死亡数'!D30/'月・区別，22週以後－早期新生児別周産期死亡率'!S6*1000 -> 0 | E30: ='月・区別，22週以後－早期新生児別周産期死亡数'!E30/'月・区別，22週以後－早期新生児別周産期死亡率'!T6*1000 -> 0 | F30: ='月・区別，22週以後－早期新生児別周産期死亡数'!F30/'月・区別，22週以後－早期新生児別周産期死亡率'!U6*1000 -> 0 | G30: ='月・区別，22週以後－早期新生児別周産期死亡数'!G30/'月・区別，22週以後－早期新生児別周産期死亡率'!V6*1000 -> 0 | H30: ='月・区別，22週以後－早期新生児別周産期死亡数'!H30/'月・区別，22週以後－早期新生児別周産期死亡率'!W6*1000 -> 0 | I30: ='月・区別，22週以後－早期新生児別周産期死亡数'!I30/'月・区別，22週以後－早期新生児別周産期死亡率'!X6*1000 -> 0 | J30: ='月・区別，22週以後－早期新生児別周産期死亡数'!J30/'月・区別，22週以後－早期新生児別周産期死亡率'!Y6*1000 -> 0 | K30: ='月・区別，22週以後－早期新生児別周産期死亡数'!K30/'月・区別，22週以後－早期新生児別周産期死亡率'!Z6*1000 -> 0 | L30: ='月・区別，22週以後－早期新生児別周産期死亡数'!L30/'月・区別，22週以後－早期新生児別周産期死亡率'!AA6*1000 -> 0 | M30: ='月・区別，22週以後－早期新生児別周産期死亡数'!M30/'月・区別，22週以後－早期新生児別周産期死亡率'!AB6*1000 -> 0 | N30: ='月・区別，22週以後－早期新生児別周産期死亡数'!N30/'月・区別，22週以後－早期新生児別周産期死亡率'!AC6*1000 -> 0
A31: 北 | B31: ='月・区別，22週以後－早期新生児別周産期死亡数'!B31/'月・区別，22週以後－早期新生児別周産期死亡率'!Q7*1000 -> 0 | C31: ='月・区別，22週以後－早期新生児別周産期死亡数'!C31/'月・区別，22週以後－早期新生児別周産期死亡率'!R7*1000 -> 0 | D31: ='月・区別，22週以後－早期新生児別周産期死亡数'!D31/'月・区別，22週以後－早期新生児別周産期死亡率'!S7*1000 -> 0 | E31: ='月・区別，22週以後－早期新生児別周産期死亡数'!E31/'月・区別，22週以後－早期新生児別周産期死亡率'!T7*1000 -> 0 | F31: ='月・区別，22週以後－早期新生児別周産期死亡数'!F31/'月・区別，22週以後－早期新生児別周産期死亡率'!U7*1000 -> 0 | G31: ='月・区別，22週以後－早期新生児別周産期死亡数'!G31/'月・区別，22週以後－早期新生児別周産期死亡率'!V7*1000 -> 0 | H31: ='月・区別，22週以後－早期新生児別周産期死亡数'!H31/'月・区別，22週以後－早期新生児別周産期死亡率'!W7*1000 -> 0 | I31: ='月・区別，22週以後－早期新生児別周産期死亡数'!I31/'月・区別，22週以後－早期新生児別周産期死亡率'!X7*1000 -> 0 | J31: ='月・区別，22週以後－早期新生児別周産期死亡数'!J31/'月・区別，22週以後－早期新生児別周産期死亡率'!Y7*1000 -> 0 | K31: ='月・区別，22週以後－早期新生児別周産期死亡数'!K31/'月・区別，22週以後－早期新生児別周産期死亡率'!Z7*1000 -> 0 | L31: ='月・区別，22週以後－早期新生児別周産期死亡数'!L31/'月・区別，22週以後－早期新生児別周産期死亡率'!AA7*1000 -> 0 | M31: ='月・区別，22週以後－早期新生児別周産期死亡数'!M31/'月・区別，22週以後－早期新生児別周産期死亡率'!AB7*1000 -> 0 | N31: ='月・区別，22週以後－早期新生児別周産期死亡数'!N31/'月・区別，22週以後－早期新生児別周産期死亡率'!AC7*1000 -> 0
A32: 東 | B32: ='月・区別，22週以後－早期新生児別周産期死亡数'!B32/'月・区別，22週以後－早期新生児別周産期死亡率'!Q8*1000 -> 0 | C32: ='月・区別，22週以後－早期新生児別周産期死亡数'!C32/'月・区別，22週以後－早期新生児別周産期死亡率'!R8*1000 -> 0 | D32: ='月・区別，22週以後－早期新生児別周産期死亡数'!D32/'月・区別，22週以後－早期新生児別周産期死亡率'!S8*1000 -> 0 | E32: ='月・区別，22週以後－早期新生児別周産期死亡数'!E32/'月・区別，22週以後－早期新生児別周産期死亡率'!T8*1000 -> 0 | F32: ='月・区別，22週以後－早期新生児別周産期死亡数'!F32/'月・区別，22週以後－早期新生児別周産期死亡率'!U8*1000 -> 0 | G32: ='月・区別，22週以後－早期新生児別周産期死亡数'!G32/'月・区別，22週以後－早期新生児別周産期死亡率'!V8*1000 -> 0 | H32: ='月・区別，22週以後－早期新生児別周産期死亡数'!H32/'月・区別，22週以後－早期新生児別周産期死亡率'!W8*1000 -> 0 | I32: ='月・区別，22週以後－早期新生児別周産期死亡数'!I32/'月・区別，22週以後－早期新生児別周産期死亡率'!X8*1000 -> 0 | J32: ='月・区別，22週以後－早期新生児別周産期死亡数'!J32/'月・区別，22週以後－早期新生児別周産期死亡率'!Y8*1000 -> 0 | K32: ='月・区別，22週以後－早期新生児別周産期死亡数'!K32/'月・区別，22週以後－早期新生児別周産期死亡率'!Z8*1000 -> 0 | L32: ='月・区別，22週以後－早期新生児別周産期死亡数'!L32/'月・区別，22週以後－早期新生児別周産期死亡率'!AA8*1000 -> 0 | M32: ='月・区別，22週以後－早期新生児別周産期死亡数'!M32/'月・区別，22週以後－早期新生児別周産期死亡率'!AB8*1000 -> 0 | N32: ='月・区別，22週以後－早期新生児別周産期死亡数'!N32/'月・区別，22週以後－早期新生児別周産期死亡率'!AC8*1000 -> 0
A33: 白石 | B33: ='月・区別，22週以後－早期新生児別周産期死亡数'!B33/'月・区別，22週以後－早期新生児別周産期死亡率'!Q9*1000 -> 0 | C33: ='月・区別，22週以後－早期新生児別周産期死亡数'!C33/'月・区別，22週以後－早期新生児別周産期死亡率'!R9*1000 -> 0 | D33: ='月・区別，22週以後－早期新生児別周産期死亡数'!D33/'月・区別，22週以後－早期新生児別周産期死亡率'!S9*1000 -> 0 | E33: ='月・区別，22週以後－早期新生児別周産期死亡数'!E33/'月・区別，22週以後－早期新生児別周産期死亡率'!T9*1000 -> 0 | F33: ='月・区別，22週以後－早期新生児別周産期死亡数'!F33/'月・区別，22週以後－早期新生児別周産期死亡率'!U9*1000 -> 0 | G33: ='月・区別，22週以後－早期新生児別周産期死亡数'!G33/'月・区別，22週以後－早期新生児別周産期死亡率'!V9*1000 -> 0 | H33: ='月・区別，22週以後－早期新生児別周産期死亡数'!H33/'月・区別，22週以後－早期新生児別周産期死亡率'!W9*1000 -> 0 | I33: ='月・区別，22週以後－早期新生児別周産期死亡数'!I33/'月・区別，22週以後－早期新生児別周産期死亡率'!X9*1000 -> 0 | J33: ='月・区別，22週以後－早期新生児別周産期死亡数'!J33/'月・区別，22週以後－早期新生児別周産期死亡率'!Y9*1000 -> 0 | K33: ='月・区別，22週以後－早期新生児別周産期死亡数'!K33/'月・区別，22週以後－早期新生児別周産期死亡率'!Z9*1000 -> 0 | L33: ='月・区別，22週以後－早期新生児別周産期死亡数'!L33/'月・区別，22週以後－早期新生児別周産期死亡率'!AA9*1000 -> 0 | M33: ='月・区別，22週以後－早期新生児別周産期死亡数'!M33/'月・区別，22週以後－早期新生児別周産期死亡率'!AB9*1000 -> 0 | N33: ='月・区別，22週以後－早期新生児別周産期死亡数'!N33/'月・区別，22週以後－早期新生児別周産期死亡率'!AC9*1000 -> 0
A34: 厚別 | B34: ='月・区別，22週以後－早期新生児別周産期死亡数'!B34/'月・区別，22週以後－早期新生児別周産期死亡率'!Q10*1000 -> 0 | C34: ='月・区別，22週以後－早期新生児別周産期死亡数'!C34/'月・区別，22週以後－早期新生児別周産期死亡率'!R10*1000 -> 0 | D34: ='月・区別，22週以後－早期新生児別周産期死亡数'!D34/'月・区別，22週以後－早期新生児別周産期死亡率'!S10*1000 -> 0 | E34: ='月・区別，22週以後－早期新生児別周産期死亡数'!E34/'月・区別，22週以後－早期新生児別周産期死亡率'!T10*1000 -> 0 | F34: ='月・区別，22週以後－早期新生児別周産期死亡数'!F34/'月・区別，22週以後－早期新生児別周産期死亡率'!U10*1000 -> 0 | G34: ='月・区別，22週以後－早期新生児別周産期死亡数'!G34/'月・区別，22週以後－早期新生児別周産期死亡率'!V10*1000 -> 0 | H34: ='月・区別，22週以後－早期新生児別周産期死亡数'!H34/'月・区別，22週以後－早期新生児別周産期死亡率'!W10*1000 -> 0 | I34: ='月・区別，22週以後－早期新生児別周産期死亡数'!I34/'月・区別，22週以後－早期新生児別周産期死亡率'!X10*1000 -> 0 | J34: ='月・区別，22週以後－早期新生児別周産期死亡数'!J34/'月・区別，22週以後－早期新生児別周産期死亡率'!Y10*1000 -> 0 | K34: ='月・区別，22週以後－早期新生児別周産期死亡数'!K34/'月・区別，22週以後－早期新生児別周産期死亡率'!Z10*1000 -> 0 | L34: ='月・区別，22週以後－早期新生児別周産期死亡数'!L34/'月・区別，22週以後－早期新生児別周産期死亡率'!AA10*1000 -> 0 | M34: ='月・区別，22週以後－早期新生児別周産期死亡数'!M34/'月・区別，22週以後－早期新生児別周産期死亡率'!AB10*1000 -> 0 | N34: ='月・区別，22週以後－早期新生児別周産期死亡数'!N34/'月・区別，22週以後－早期新生児別周産期死亡率'!AC10*1000 -> 0
A35: 豊平 | B35: ='月・区別，22週以後－早期新生児別周産期死亡数'!B35/'月・区別，22週以後－早期新生児別周産期死亡率'!Q11*1000 -> 0 | C35: ='月・区別，22週以後－早期新生児別周産期死亡数'!C35/'月・区別，22週以後－早期新生児別周産期死亡率'!R11*1000 -> 0 | D35: ='月・区別，22週以後－早期新生児別周産期死亡数'!D35/'月・区別，22週以後－早期新生児別周産期死亡率'!S11*1000 -> 0 | E35: ='月・区別，22週以後－早期新生児別周産期死亡数'!E35/'月・区別，22週以後－早期新生児別周産期死亡率'!T11*1000 -> 0 | F35: ='月・区別，22週以後－早期新生児別周産期死亡数'!F35/'月・区別，22週以後－早期新生児別周産期死亡率'!U11*1000 -> 0 | G35: ='月・区別，22週以後－早期新生児別周産期死亡数'!G35/'月・区別，22週以後－早期新生児別周産期死亡率'!V11*1000 -> 0 | H35: ='月・区別，22週以後－早期新生児別周産期死亡数'!H35/'月・区別，22週以後－早期新生児別周産期死亡率'!W11*1000 -> 0 | I35: ='月・区別，22週以後－早期新生児別周産期死亡数'!I35/'月・区別，22週以後－早期新生児別周産期死亡率'!X11*1000 -> 0 | J35: ='月・区別，22週以後－早期新生児別周産期死亡数'!J35/'月・区別，22週以後－早期新生児別周産期死亡率'!Y11*1000 -> 0 | K35: ='月・区別，22週以後－早期新生児別周産期死亡数'!K35/'月・区別，22週以後－早期新生児別周産期死亡率'!Z11*1000 -> 0 | L35: ='月・区別，22週以後－早期新生児別周産期死亡数'!L35/'月・区別，22週以後－早期新生児別周産期死亡率'!AA11*1000 -> 0 | M35: ='月・区別，22週以後－早期新生児別周産期死亡数'!M35/'月・区別，22週以後－早期新生児別周産期死亡率'!AB11*1000 -> 0 | N35: ='月・区別，22週以後－早期新生児別周産期死亡数'!N35/'月・区別，22週以後－早期新生児別周産期死亡率'!AC11*1000 -> 0
A36: 清田 | B36: ='月・区別，22週以後－早期新生児別周産期死亡数'!B36/'月・区別，22週以後－早期新生児別周産期死亡率'!Q12*1000 -> 0 | C36: ='月・区別，22週以後－早期新生児別周産期死亡数'!C36/'月・区別，22週以後－早期新生児別周産期死亡率'!R12*1000 -> 0 | D36: ='月・区別，22週以後－早期新生児別周産期死亡数'!D36/'月・区別，22週以後－早期新生児別周産期死亡率'!S12*1000 -> 0 | E36: ='月・区別，22週以後－早期新生児別周産期死亡数'!E36/'月・区別，22週以後－早期新生児別周産期死亡率'!T12*1000 -> 0 | F36: ='月・区別，22週以後－早期新生児別周産期死亡数'!F36/'月・区別，22週以後－早期新生児別周産期死亡率'!U12*1000 -> 0 | G36: ='月・区別，22週以後－早期新生児別周産期死亡数'!G36/'月・区別，22週以後－早期新生児別周産期死亡率'!V12*1000 -> 0 | H36: ='月・区別，22週以後－早期新生児別周産期死亡数'!H36/'月・区別，22週以後－早期新生児別周産期死亡率'!W12*1000 -> 0 | I36: ='月・区別，22週以後－早期新生児別周産期死亡数'!I36/'月・区別，22週以後－早期新生児別周産期死亡率'!X12*1000 -> 0 | J36: ='月・区別，22週以後－早期新生児別周産期死亡数'!J36/'月・区別，22週以後－早期新生児別周産期死亡率'!Y12*1000 -> 0 | K36: ='月・区別，22週以後－早期新生児別周産期死亡数'!K36/'月・区別，22週以後－早期新生児別周産期死亡率'!Z12*1000 -> 0 | L36: ='月・区別，22週以後－早期新生児別周産期死亡数'!L36/'月・区別，22週以後－早期新生児別周産期死亡率'!AA12*1000 -> 0 | M36: ='月・区別，22週以後－早期新生児別周産期死亡数'!M36/'月・区別，22週以後－早期新生児別周産期死亡率'!AB12*1000 -> 0 | N36: ='月・区別，22週以後－早期新生児別周産期死亡数'!N36/'月・区別，22週以後－早期新生児別周産期死亡率'!AC12*1000 -> 0
A37: 南 | B37: ='月・区別，22週以後－早期新生児別周産期死亡数'!B37/'月・区別，22週以後－早期新生児別周産期死亡率'!Q13*1000 -> 0 | C37: ='月・区別，22週以後－早期新生児別周産期死亡数'!C37/'月・区別，22週以後－早期新生児別周産期死亡率'!R13*1000 -> 0 | D37: ='月・区別，22週以後－早期新生児別周産期死亡数'!D37/'月・区別，22週以後－早期新生児別周産期死亡率'!S13*1000 -> 0 | E37: ='月・区別，22週以後－早期新生児別周産期死亡数'!E37/'月・区別，22週以後－早期新生児別周産期死亡率'!T13*1000 -> 0 | F37: ='月・区別，22週以後－早期新生児別周産期死亡数'!F37/'月・区別，22週以後－早期新生児別周産期死亡率'!U13*1000 -> 0 | G37: ='月・区別，22週以後－早期新生児別周産期死亡数'!G37/'月・区別，22週以後－早期新生児別周産期死亡率'!V13*1000 -> 0 | H37: ='月・区別，22週以後－早期新生児別周産期死亡数'!H37/'月・区別，22週以後－早期新生児別周産期死亡率'!W13*1000 -> 0 | I37: ='月・区別，22週以後－早期新生児別周産期死亡数'!I37/'月・区別，22週以後－早期新生児別周産期死亡率'!X13*1000 -> 0 | J37: ='月・区別，22週以後－早期新生児別周産期死亡数'!J37/'月・区別，22週以後－早期新生児別周産期死亡率'!Y13*1000 -> 0 | K37: ='月・区別，22週以後－早期新生児別周産期死亡数'!K37/'月・区別，22週以後－早期新生児別周産期死亡率'!Z13*1000 -> 0 | L37: ='月・区別，22週以後－早期新生児別周産期死亡数'!L37/'月・区別，22週以後－早期新生児別周産期死亡率'!AA13*1000 -> 0 | M37: ='月・区別，22週以後－早期新生児別周産期死亡数'!M37/'月・区別，22週以後－早期新生児別周産期死亡率'!AB13*1000 -> 0 | N37: ='月・区別，22週以後－早期新生児別周産期死亡数'!N37/'月・区別，22週以後－早期新生児別周産期死亡率'!AC13*1000 -> 0
A38: 西 | B38: ='月・区別，22週以後－早期新生児別周産期死亡数'!B38/'月・区別，22週以後－早期新生児別周産期死亡率'!Q14*1000 -> 0 | C38: ='月・区別，22週以後－早期新生児別周産期死亡数'!C38/'月・区別，22週以後－早期新生児別周産期死亡率'!R14*1000 -> 0 | D38: ='月・区別，22週以後－早期新生児別周産期死亡数'!D38/'月・区別，22週以後－早期新生児別周産期死亡率'!S14*1000 -> 0 | E38: ='月・区別，22週以後－早期新生児別周産期死亡数'!E38/'月・区別，22週以後－早期新生児別周産期死亡率'!T14*1000 -> 0 | F38: ='月・区別，22週以後－早期新生児別周産期死亡数'!F38/'月・区別，22週以後－早期新生児別周産期死亡率'!U14*1000 -> 0 | G38: ='月・区別，22週以後－早期新生児別周産期死亡数'!G38/'月・区別，22週以後－早期新生児別周産期死亡率'!V14*1000 -> 0 | H38: ='月・区別，22週以後－早期新生児別周産期死亡数'!H38/'月・区別，22週以後－早期新生児別周産期死亡率'!W14*1000 -> 0 | I38: ='月・区別，22週以後－早期新生児別周産期死亡数'!I38/'月・区別，22週以後－早期新生児別周産期死亡率'!X14*1000 -> 0 | J38: ='月・区別，22週以後－早期新生児別周産期死亡数'!J38/'月・区別，22週以後－早期新生児別周産期死亡率'!Y14*1000 -> 0 | K38: ='月・区別，22週以後－早期新生児別周産期死亡数'!K38/'月・区別，22週以後－早期新生児別周産期死亡率'!Z14*1000 -> 0 | L38: ='月・区別，22週以後－早期新生児別周産期死亡数'!L38/'月・区別，22週以後－早期新生児別周産期死亡率'!AA14*1000 -> 0 | M38: ='月・区別，22週以後－早期新生児別周産期死亡数'!M38/'月・区別，22週以後－早期新生児別周産期死亡率'!AB14*1000 -> 0 | N38: ='月・区別，22週以後－早期新生児別周産期死亡数'!N38/'月・区別，22週以後－早期新生児別周産期死亡率'!AC14*1000 -> 0
A39: 手稲 | B39: ='月・区別，22週以後－早期新生児別周産期死亡数'!B39/'月・区別，22週以後－早期新生児別周産期死亡率'!Q15*1000 -> 0 | C39: ='月・区別，22週以後－早期新生児別周産期死亡数'!C39/'月・区別，22週以後－早期新生児別周産期死亡率'!R15*1000 -> 0 | D39: ='月・区別，22週以後－早期新生児別周産期死亡数'!D39/'月・区別，22週以後－早期新生児別周産期死亡率'!S15*1000 -> 0 | E39: ='月・区別，22週以後－早期新生児別周産期死亡数'!E39/'月・区別，22週以後－早期新生児別周産期死亡率'!T15*1000 -> 0 | F39: ='月・区別，22週以後－早期新生児別周産期死亡数'!F39/'月・区別，22週以後－早期新生児別周産期死亡率'!U15*1000 -> 0 | G39: ='月・区別，22週以後－早期新生児別周産期死亡数'!G39/'月・区別，22週以後－早期新生児別周産期死亡率'!V15*1000 -> 0 | H39: ='月・区別，22週以後－早期新生児別周産期死亡数'!H39/'月・区別，22週以後－早期新生児別周産期死亡率'!W15*1000 -> 0 | I39: ='月・区別，22週以後－早期新生児別周産期死亡数'!I39/'月・区別，22週以後－早期新生児別周産期死亡率'!X15*1000 -> 0 | J39: ='月・区別，22週以後－早期新生児別周産期死亡数'!J39/'月・区別，22週以後－早期新生児別周産期死亡率'!Y15*1000 -> 0 | K39: ='月・区別，22週以後－早期新生児別周産期死亡数'!K39/'月・区別，22週以後－早期新生児別周産期死亡率'!Z15*1000 -> 0 | L39: ='月・区別，22週以後－早期新生児別周産期死亡数'!L39/'月・区別，22週以後－早期新生児別周産期死亡率'!AA15*1000 -> 0 | M39: ='月・区別，22週以後－早期新生児別周産期死亡数'!M39/'月・区別，22週以後－早期新生児別周産期死亡率'!AB15*1000 -> 0 | N39: ='月・区別，22週以後－早期新生児別周産期死亡数'!N39/'月・区別，22週以後－早期新生児別周産期死亡率'!AC15*1000 -> 0
